Cogmind - Beta 10.2 @@@ ROGUE MODE // 2021.08.29 @ 03:51:17 Player: Savant Result: Escaped! Performance ------------- Evolutions (9) 4500 Regions Visited (35) 7000 Robots Destroyed (544) 2720 Value Destroyed (27285) 27285 Prototype IDs (79) 1580 Alien Tech Used (0) 0 Bonus (20921) 20921 TOTAL SCORE: 64006 Bonus ------- High Alert Combat Kills 7017 Follower Combat Kills 4072 Entered Garrisons 1600 Used RIF Installer 4000 Network Hubs Disabled 400 Aligned with FarCom 300 A7 Reached Mainframe 300 Met R17 at Cetus 500 Win 3000 Friendly Fire -268 Cogmind --------- Core Integrity 1351/1600 Matter 107/300 Energy 588/600 System Corruption 9% Temperature Cool (-198) Movement Treading (165) Ox1 Location To Epsilon Eridani Parts ------- > --- POWER (1) -------- (None) > --- PROPULSION (2) --- Biometal Medium Treads > --- UTILITY (20) ----- Advanced Cryofiber Web Large Storage Unit High-capacity Storage Unit Energy Well Advanced Targeting Computer Advanced Target Analyzer Improved Hacking Suite Advanced Hacking Suite Relay Coupler [NC] (38) Relay Coupler [Swarmer] (39) Relay Coupler [Grunt] (12) Relay Coupler [Duelist] (24) Relay Coupler [Sentry] (24) Relay Coupler [Demolisher] (23) Relay Coupler [Hunter] (19) > --- WEAPON (2) ------- Gamma Rifle Gamma Rifle > --- INVENTORY (18) --- Biometal Leg Medium Storage Unit Relay Coupler [NC] (32) Relay Coupler [NC] (25) Relay Coupler [Grunt] (28) Relay Coupler [Sentry] (21) Trap Reconfigurator Enhanced Quantum Rifle Long-range Phase Cannon Enhanced Nova Cannon Hypervelocity Railgun Heavy Shock Bomb Launcher Neutron Missile Launcher Advanced Remote Datajack Kinetic Spear Peak State ------------ > --- POWER ------------ Reinforced Antimatter Reactor > --- PROPULSION ------- Biometal Leg Biometal Leg > --- UTILITY ---------- Advanced Power Amplifier Experimental Power Amplifier Advanced Heat Sink Advanced Heat Sink Medium Storage Unit High-capacity Storage Unit Advanced Targeting Computer Advanced Targeting Computer Advanced Target Analyzer Improved Stasis Canceller Improved Stasis Canceller Improved Stasis Canceller Improved Hacking Suite Advanced Hacking Suite Relay Coupler [NC] Relay Coupler [Swarmer] Relay Coupler [Grunt] Trap Reconfigurator > --- WEAPON ----------- Hypervelocity Railgun Advanced Remote Datajack > --- INVENTORY -------- Quantum Reactor Biometal Medium Treads Large Storage Unit Relay Coupler [Behemoth] Relay Coupler [Behemoth] Gamma Rifle Gamma Rifle Enhanced Quantum Rifle Enhanced Quantum Rifle Compact HERF Cannon Compact HERF Cannon Long-range Phase Cannon Heavy Shock Bomb Launcher Neutron Missile Launcher Kinetic Spear [Rating: 145] Favorites ----------- Power Quantum Reactor Engine Improved Deuterium Engine Power Core Enhanced Nuclear Core Reactor Quantum Reactor Propulsion Biometal Leg Treads Centrium Heavy Treads Leg Biometal Leg Wheel Armored Huge Wheel Flight Unit Impulse Thruster Utility Large Storage Unit Device Advanced Heat Sink Storage Large Storage Unit Processor Advanced Targeting Computer Hackware Relay Coupler [NC] Protection Improved Medium Armor Plating Weapon Improved Assault Rifle Energy Gun Gamma Rifle Energy Cannon Proton Cannon Ballistic Gun Improved Assault Rifle Ballistic Cannon Advanced Assault Cannon Launcher Precision Rocket Launcher Special Weapon Improved Remote Datajack Slashing Weapon Great Axe Piercing Weapon Kinetic Spear Special Melee Weapon Datajack Build | -11 -10 -10 -9 -9 -9 -8 -8 -8 -7 -7 -7 -7 -7 -7 -6 -6 -6 -6 -6 -6 -6 -5 -5 -5 -5 -4 -4 -4 -3 -3 -2 -2 -2 -2 -1 ------- Run | Scr Mat Min Mat Min Exi Min Mat Gar Fac Was Fac Gar Fac Gar Fac Was Fac Ext Cet Arc Hub Fac Was Fac Gar Fac Gar Fac Res Gar Res Gar Res Gar Acc Slots Evolved 18 | . . . 2 . . . 2 . 2 . . . . . 2 . . . . . . 2 . . . 2 . . 2 . 2 . . . 2 Power . | . . . . . . . . . . . . . . . . . . . . . . . . . . . . . . . . . . . . Propulsion . | . . . . . . . . . . . . . . . . . . . . . . . . . . . . . . . . . . . . Utility 18 | . . . 2 . . . 2 . 2 . . . . . 2 . . . . . . 2 . . . 2 . . 2 . 2 . . . 2 Weapon . | . . . . . . . . . . . . . . . . . . . . . . . . . . . . . . . . . . . . Parts Attached 928 | 6 6 . 23 7 7 3 21 22 58 2 49 39 31 20 49 13 22 31 19 2 30 90 9 9 17 59 31 26 16 32 10 23 57 53 36 Power 42 | 1 . . 3 1 . . . 1 4 . 1 1 1 1 2 . . 1 1 . . 2 . . 1 6 5 1 1 3 . . 2 2 1 Engine 11 | 1 . . 3 1 . . . . 2 . 1 1 . . 1 . . 1 . . . . . . . . . . . . . . . . . Core 8 | . . . . . . . . 1 2 . . . 1 1 1 . . . . . . . . . . . 2 . . . . . . . . Reactor 23 | . . . . . . . . . . . . . . . . . . . 1 . . 2 . . 1 6 3 1 1 3 . . 2 2 1 Propulsion 65 | 2 . . 2 2 . 1 2 1 9 . 3 1 1 . . 1 . 1 2 . . 1 1 . . 5 3 4 2 4 . 4 5 5 3 Treads 22 | 1 . . 2 1 . 1 1 1 4 . . . . . . . . 1 1 . . 1 1 . . 1 3 . . . . . . 2 1 Leg 26 | . . . . . . . . . . . . . . . . . . . . . . . . . . 4 . 2 2 4 . 4 5 3 2 Wheel 15 | 1 . . . 1 . . 1 . 5 . 3 1 1 . . 1 . . 1 . . . . . . . . . . . . . . . . Hover . | . . . . . . . . . . . . . . . . . . . . . . . . . . . . . . . . . . . . Flight 2 | . . . . . . . . . . . . . . . . . . . . . . . . . . . . 2 . . . . . . . Utility 458 | 1 4 . 9 2 5 . 12 10 34 1 25 20 19 7 22 5 12 17 8 . 18 47 7 7 7 25 12 16 7 21 5 9 23 30 11 Device 205 | . . . . . 2 . 3 4 18 . 15 9 9 3 8 3 11 10 2 . 10 18 2 2 2 12 4 8 3 4 1 6 14 16 6 Storage 38 | 1 1 . 3 . 1 . . 1 1 . . 1 2 . 3 . . 1 1 . 1 5 . . . 1 1 2 2 . 2 . 2 4 2 Processor 20 | . 1 . 3 . . . 1 . 1 . 1 . . . 1 . . . 1 . . 2 . 1 . 1 2 . . 1 2 1 1 . . Hackware 74 | . . . . . . . . . 1 1 2 3 3 1 6 1 . . . . 4 5 . 1 1 6 5 5 . 15 . 1 3 8 2 Protection 121 | . 2 . 3 2 2 . 8 5 13 . 7 7 5 3 4 1 1 6 4 . 3 17 5 3 4 5 . 1 2 1 . 1 3 2 1 Artifact . | . . . . . . . . . . . . . . . . . . . . . . . . . . . . . . . . . . . . Weapon 363 | 2 2 . 9 2 2 2 7 10 11 1 20 17 10 12 25 7 10 12 8 2 12 40 1 2 9 23 11 5 6 4 5 10 27 16 21 Energy Gun 62 | . . . 1 . . . . 1 . . 7 3 2 2 5 . . 1 1 . . 5 . . . 6 4 1 . 1 . 5 8 1 8 Energy Cannon 62 | . . . . . . . . . . . 2 1 . . 8 2 4 3 6 . 3 8 . 1 4 2 1 1 . . . . 7 4 5 Ballistic Gun 97 | 2 2 . 6 1 1 1 5 4 9 . 7 6 3 5 1 2 1 4 1 . 6 11 . 1 2 6 1 2 . . . . 1 5 1 Ballistic Cannon 7 | . . . . . . . . 1 1 . 1 . 1 . . . . . . . . . . . . 1 . . . 1 . . 1 . . Launcher 49 | . . . 2 1 . 1 2 4 1 . 1 1 . 2 1 . . 1 . . 1 5 . . 3 6 5 . 2 1 1 1 2 . 5 Special Weapon 48 | . . . . . . . . . . 1 1 4 1 3 5 3 3 3 . 1 2 5 . . . . . . . 1 2 3 3 5 2 Impact Weapon . | . . . . . . . . . . . . . . . . . . . . . . . . . . . . . . . . . . . . Slashing Weapon 23 | . . . . . . . . . . . 1 2 3 . 5 . 2 . . 1 . 6 1 . . 2 . . . . . . . . . Piercing Weapon 13 | . . . . . . . . . . . . . . . . . . . . . . . . . . . . 1 4 . 1 1 5 1 . Special Melee Weapon 2 | . . . . . 1 . . . . . . . . . . . . . . . . . . . . . . . . . 1 . . . . Unidentified Prototypes 19 | . . . 1 . . . 1 . 2 . . . . . . . . . 4 . 2 . . . . 2 . . 3 . . 1 2 . 1 Parts Lost 146 | . . . 4 1 . 1 1 2 8 . 6 8 1 4 1 . . . . . 2 21 . . 3 27 14 4 1 8 . 2 10 5 12 Power 10 | . . . 1 . . . . 1 1 . 1 1 . 1 . . . . . . . . . . . 2 1 . . . . . . . 1 Propulsion 16 | . . . . . . 1 . . 3 . 1 1 . . . . . . . . . 1 . . . 2 3 . . 1 . . 1 . 2 Utility 87 | . . . 2 1 . . 1 1 2 . 1 3 1 1 . . . . . . 2 16 . . 3 15 7 2 1 6 . 2 8 5 7 Weapon 33 | . . . 1 . . . . . 2 . 3 3 . 2 1 . . . . . . 4 . . . 8 3 2 . 1 . . 1 . 2 Highest Loss Streak 16 | . . . 2 1 . 1 1 1 3 . 1 4 1 3 1 . . . . . 1 14 . . 1 16 9 2 1 3 . 1 3 2 7 Average Slot Usage (%) 90 | . 98 100 98 100 99 100 97 100 99 92 92 91 86 84 79 77 79 82 86 86 77 76 84 91 93 81 79 89 96 95 94 94 95 95 98 Engine 3 | . 14 14 11 11 11 11 9 6 5 . 1 7 4 . 1 6 6 6 . . . . . . . . . . . . . . . . . Reactor 2 | . . . . . . . . . . . . . . . . . . . 5 6 6 5 5 5 5 4 4 5 4 4 4 4 4 3 4 Treads 3 | . 14 14 11 11 11 11 9 9 6 . . . . . . . . 3 6 6 6 5 4 5 5 4 2 2 . . . . . . . Leg 1 | . . . . . . . . . . . . . . . . . . . . . . . . . . 1 5 3 5 9 8 8 8 7 7 Wheel 3 | . 14 14 11 11 11 11 8 9 6 7 7 6 7 7 6 6 6 2 . . . . . . . . . . . . . . . . . Device 8 | . . . . . . . . . 7 8 11 12 13 11 4 3 12 11 12 13 5 8 11 9 7 12 13 8 5 7 5 8 16 15 10 Storage 16 | . 14 14 21 22 29 33 27 27 23 23 23 23 17 15 13 13 13 13 13 13 13 12 23 23 23 21 4 2 2 4 5 8 9 12 12 Processor 10 | . . . 10 11 3 . 8 9 14 15 15 15 15 15 14 13 13 13 13 13 9 2 11 11 5 5 11 10 8 4 12 16 13 13 11 Hackware 15 | . . . . . . . . . 6 13 8 3 2 3 13 12 6 6 6 6 13 16 5 10 11 14 26 43 54 52 43 35 29 28 40 Protection 7 | . 13 14 10 11 10 11 17 17 7 . 1 4 6 6 6 6 6 10 13 13 8 10 7 9 18 5 . 1 . 1 4 3 3 4 3 Energy Gun 1 | . . . . . . . . 4 . . 1 1 3 1 1 1 . . . . . 2 . . . 1 5 1 . 1 . 5 3 . 4 Energy Cannon 1 | . . . . . . . . . . . 3 . . . 6 5 2 3 8 6 . 1 . . 8 . 2 4 . . . . 2 3 2 Ballistic Gun 6 | . 28 28 22 22 11 21 17 13 11 8 5 9 6 7 . 4 . 2 4 . 7 3 5 7 1 5 1 2 . . . . . 2 . Special Weapon 1 | . . . . . . . . . . 6 . 2 1 2 2 . 3 4 . 3 2 1 . . . . . . . 2 4 2 . . 1 Naked Turns . | . . . . . . . . . . . . . . . . . . . . . . . . . . . . . . . . . . . . Heaviest Build 187 | 13 32 32 64 68 84 84 87 100 116 100 105 123 137 126 160 168 168 153 152 149 177 187 90 118 110 121 50 56 51 67 76 85 117 115 110 Greatest Support 89 | 16 20 16 20 23 12 12 20 20 28 28 28 28 28 28 28 28 28 70 80 80 80 89 80 80 80 80 70 70 50 50 50 56 56 56 56 Greatest Overweight (x) 33 | 1 1 1 3 5 6 6 7 8 9 3 33 4 4 4 5 5 5 5 5 1 2 2 1 1 1 2 6 1 1 1 1 1 2 15 2 Average Overweight (x) 2 | . . 1 2 4 5 6 5 6 6 3 3 3 3 4 4 4 4 3 1 1 1 1 . 1 1 . . . . . 1 1 1 1 1 Largest Inventory Capacity 32 | 6 10 10 18 18 24 24 24 26 26 26 26 26 32 30 32 30 30 30 30 30 30 30 22 22 22 22 8 8 10 10 14 14 16 18 18 Average Capacity 22 | 5 9 10 15 18 22 24 24 24 26 26 26 26 28 30 30 30 30 30 30 30 30 29 22 22 22 19 7 5 7 10 11 14 15 17 18 Most Carried 30 | 4 10 10 18 18 21 20 24 26 26 26 26 26 30 30 30 30 30 30 30 30 30 30 22 22 22 22 8 8 9 10 14 14 16 18 18 Average Carried 21 | 2 8 9 13 17 19 19 22 24 25 25 25 23 27 29 27 28 29 29 29 29 29 24 18 21 21 18 7 5 5 9 11 13 15 16 17 Final Capacity 30 | 6 10 10 18 18 24 24 24 26 26 26 26 26 30 30 30 30 30 30 30 30 30 22 22 22 22 8 8 4 10 10 14 14 16 18 18 Final Carried 30 | 4 10 10 18 18 20 19 24 26 26 26 26 26 30 26 26 29 30 30 30 30 26 11 22 22 22 8 8 4 9 10 14 14 16 18 15 Class Distribution -------------------- 26% | Bothacker-Mutant 17% | Botlord-Mutant 15% | Scavenger-Mutant 11% | Hauler-Mutant 10% | Bothacker-Skirmisher 8% | Mutant 5% | Bothacker-Assassin Dominant Class ---------------- Mutant | -10/Materials Mutant | -10/Mines Mutant | -9/Materials Mutant | -9/Mines Hauler-Mutant | -9/Exiles Hauler-Mutant | -8/Mines Hauler-Mutant | -8/Materials Hauler-Mutant | -8/Garrison Bothacker-Skirmisher | -7/Factory Bothacker-Mutant | -7/Waste Bothacker-Mutant | -7/Factory Bothacker-Mutant | -7/Garrison Bothacker-Skirmisher | -7/Factory Bothacker-Mutant | -7/Garrison Bothacker-Mutant | -6/Factory Hauler-Mutant | -6/Waste Bothacker-Assassin | -6/Factory Bothacker-Mutant | -6/Extension Bothacker-Mutant | -6/Cetus Bothacker-Skirmisher | -6/Archives Bothacker-Mutant | -6/Hub_04(d) Bothacker-Mutant | -5/Factory Scavenger-Mutant | -5/Waste Scavenger-Mutant | -5/Factory Scavenger-Mutant | -5/Garrison Scavenger-Mutant | -4/Factory Scavenger-Mutant | -4/Garrison Scavenger-Mutant | -4/Factory Scavenger-Assassin | -3/Research Botlord-Mutant | -3/Garrison Botlord-Mutant | -2/Research Botlord-Mutant | -2/Garrison Botlord-Mutant | -2/Research Botlord-Mutant | -2/Garrison Botlord-Mutant | -1/Access Resources | -11 -10 -10 -9 -9 -9 -8 -8 -8 -7 -7 -7 -7 -7 -7 -6 -6 -6 -6 -6 -6 -6 -5 -5 -5 -5 -4 -4 -4 -3 -3 -2 -2 -2 -2 -1 ----------- Run | Scr Mat Min Mat Min Exi Min Mat Gar Fac Was Fac Gar Fac Gar Fac Was Fac Ext Cet Arc Hub Fac Was Fac Gar Fac Gar Fac Res Gar Res Gar Res Gar Acc Matter Collected 18638 | 238 208 308 676 216 60 14 501 437 1498 . 967 1059 338 344 757 217 387 740 284 27 767 1666 144 138 523 1020 585 247 327 853 231 429 964 899 569 Remotely 123 | . . . . . . . . . . . . . . . . . . . . . . . . . . 123 . . . . . . . . . Salvage Created 24469 | . 287 183 1217 102 . 23 814 385 1769 . 1431 595 283 761 630 850 207 196 360 195 1056 3428 216 172 875 1620 655 535 566 937 322 541 1415 585 1258 Parts 1146 | . 16 15 71 11 . 12 50 31 84 . 93 27 22 25 20 20 8 20 13 9 61 144 4 16 21 73 35 17 18 36 16 22 62 23 51 Haulers Intercepted 10 | . . . 2 . . . 4 . 1 . 1 . . . . . . . . . . . . . . . . . 2 . . . . . . Recyclers Shooed 23 | . . . . . . . . . 2 . 1 . . . 2 . 1 . . . . 10 . 1 . 2 . 3 . . . . 1 . . Parts Field Recycled . | . . . . . . . . . . . . . . . . . . . . . . . . . . . . . . . . . . . . Retrieved Matter . | . . . . . . . . . . . . . . . . . . . . . . . . . . . . . . . . . . . . Parts Self-Destructed . | . . . . . . . . . . . . . . . . . . . . . . . . . . . . . . . . . . . . Prevented . | . . . . . . . . . . . . . . . . . . . . . . . . . . . . . . . . . . . . Kills | -11 -10 -10 -9 -9 -9 -8 -8 -8 -7 -7 -7 -7 -7 -7 -6 -6 -6 -6 -6 -6 -6 -5 -5 -5 -5 -4 -4 -4 -3 -3 -2 -2 -2 -2 -1 ------- Run | Scr Mat Min Mat Min Exi Min Mat Gar Fac Was Fac Gar Fac Gar Fac Was Fac Ext Cet Arc Hub Fac Was Fac Gar Fac Gar Fac Res Gar Res Gar Res Gar Acc Combat Hostiles Destroyed 428 | . 9 8 22 6 . 4 16 17 32 . 22 14 3 18 6 3 1 5 5 2 16 40 . 2 25 40 17 6 6 21 5 10 17 11 19 Melee 20 | . . . . . . . . . . . 1 . . . 1 . . 1 . . . 2 . . . 3 . 1 1 4 1 2 2 1 . Guns 170 | . 9 8 18 3 . . 9 5 26 . 12 6 3 7 1 . 1 1 1 . 15 15 . 2 . 10 4 2 . 1 . 4 2 5 . Cannons 50 | . . . . . . . . 1 4 . 4 4 . . 1 3 . . 1 1 . 1 . . 2 1 4 3 . 2 . . 9 4 5 AOE 159 | . . . 4 3 . 4 7 11 2 . 3 4 . 8 1 . . 3 . . 1 19 . . 15 26 9 . 5 14 4 3 . . 13 Classes Destroyed 19 | . 3 . 6 . . 1 1 . 2 . 1 . . . 1 1 . . . . 1 1 . . 1 . . . . . . . . . . Worker 24 | . . . . . . . 2 . 1 . 3 . . . . . . 1 . . 3 4 . . . 6 . . 2 . . . . . 2 Builder 25 | . . . 1 . . . 1 . 1 . 5 . 1 . . . 1 1 . . 3 5 . 1 . 2 . . . . . . 1 . 2 Tunneler 3 | . . . . . . 1 . . . . . . . . . . . 1 . . . 1 . . . . . . . . . . . . . Hauler 10 | . . . 2 . . . 4 . 1 . 1 . . . . . . . . . . . . . . . . . 2 . . . . . . Recycler 33 | . . . 2 . . . . . 4 . 4 . 1 . 2 . 1 . . . 1 11 . . . 2 . 1 1 . 1 . 1 . 1 Mechanic 2 | . . . . . . . . . . . . . . . . . . . . . . 2 . . . . . . . . . . . . . Operator 5 | . 1 . 2 . . . 1 . . . . . . . . . . . . 1 . . . . . . . . . . . . . . . Watcher 13 | . . . 3 . . . 2 . 1 . 1 . 1 . . . . . 1 . 1 1 . 1 . . . . . . . . . . 1 Swarmer 110 | . 3 6 4 4 . 4 3 10 6 . 5 4 . 9 . . . 3 1 . 2 4 . . 4 14 7 . . 7 3 4 . 3 . Saboteur 7 | . . . . . . . . . . . . . . . . . . . . . 1 . . . . 2 . . . . . . . 4 . Grunt 161 | . 6 2 12 2 . . 9 6 15 . 7 6 2 9 1 . . . . . 8 14 . . 16 11 3 1 5 9 . 2 2 2 11 Brawler 9 | . . . 1 . . . . . 1 . . . . . . . . . . . . 2 . . . 2 1 . . 1 . . 1 . . Duelist 14 | . . . . . . . . . 1 . 1 1 . . . . . . . . 1 7 . . . 2 . . . . . . . . 1 Protector 3 | . . . . . . . . . . . 1 . . . . . . . . . . 1 . . . . . . . . . . . . 1 Sentry 37 | . . . 5 . . . 4 1 3 . 4 2 . . 1 . . 1 . 2 1 1 . . 3 1 2 1 1 . . . 2 2 . Hunter 25 | . . . . . . . . . . . . . . . 2 . . . 1 . 1 5 . . 1 2 2 2 . 2 2 2 3 . . Programmer 54 | . . . . . . . . . 6 . 4 1 1 . 2 . 1 1 . . 2 6 . 2 . 6 1 2 . 1 . 2 9 . 7 Behemoth 3 | . . . . . . . . . . . . . . . . . . . . . . . . . 1 . 1 . . 1 . . . . . Compactor 3 | . . . . . . . . . . . . . . . . 3 . . . . . . . . . . . . . . . . . . . Cetus Guard 3 | . . . . . . . . . . . . . . . . . . . 3 . . . . . . . . . . . . . . . . Best Kill Streak 18 | . 5 6 4 4 . 5 7 3 7 . 7 4 3 7 2 1 3 4 2 3 4 11 . 2 9 18 4 2 8 9 4 4 2 3 10 Combat Bots Only 9 | . 4 6 4 4 . 4 6 3 4 . 5 4 2 7 2 1 1 3 2 2 3 8 . 1 9 9 4 2 5 9 4 4 2 3 9 Max Kills in Single Turn 4 | . 1 1 2 3 . 2 4 3 2 . 3 2 2 2 1 1 1 4 1 1 4 4 . 1 4 4 2 1 3 4 4 2 1 1 3 Gunslinging 1 | . . . 1 . . . . . . . . . . . . . . . . . . . . . . . . . . . . . . . . Exploded 4 | . . . 2 3 . 2 3 3 2 . 2 2 . 2 1 . . 3 . . 1 3 . . 4 4 2 . 3 4 4 2 . . 3 Melee 1 | . . . . . . . . . . . 1 . . . 1 . . 1 . . . 1 . . . 1 . 1 1 1 1 1 1 1 . Uniques/NPCs Destroyed . | . . . . . . . . . . . . . . . . . . . . . . . . . . . . . . . . . . . . Combat | -11 -10 -10 -9 -9 -9 -8 -8 -8 -7 -7 -7 -7 -7 -7 -6 -6 -6 -6 -6 -6 -6 -5 -5 -5 -5 -4 -4 -4 -3 -3 -2 -2 -2 -2 -1 -------- Run | Scr Mat Min Mat Min Exi Min Mat Gar Fac Was Fac Gar Fac Gar Fac Was Fac Ext Cet Arc Hub Fac Was Fac Gar Fac Gar Fac Res Gar Res Gar Res Gar Acc Damage Taken 36560 | . 76 209 854 147 . 70 642 732 2146 . 1664 1469 660 920 1089 . 221 198 326 69 1990 5564 . 34 1626 4698 1344 911 298 1289 311 1142 3167 728 1966 Core 4142 | . 6 29 52 30 . . 60 73 203 . 220 116 25 109 80 . . 17 . 23 122 446 . . 101 806 219 82 47 257 23 87 570 90 249 Absorbed by Shields 1488 | . . . . . . . . . . . 33 105 . 104 . . . 79 134 . . 269 . . 264 . 367 . . 100 . 33 . . . Reduced by Siege Mode 141 | . . . . . . . . . . . . . . . . . . 8 18 . 20 10 . . 16 69 . . . . . . . . . Core Remaining (%) 60 | 100 . 86 . . . 79 . 75 . . . . . 3 . . . . . . 71 . . . 45 . . 3 . 76 . . . 46 84 Volleys Fired 1478 | . 21 18 79 11 . 4 40 41 134 5 73 66 21 38 46 27 19 47 16 8 71 167 . 22 48 69 81 33 4 45 7 32 75 43 67 Largest 2 | . 2 2 2 2 . 1 2 2 2 1 2 2 2 2 2 2 2 2 2 2 2 2 . 2 2 2 2 2 1 1 1 2 2 2 2 Hottest 240 | . 46 46 56 56 . 33 56 79 79 40 124 110 110 115 159 120 120 105 240 150 90 146 . 81 162 176 176 193 49 75 50 150 210 188 214 Shots Fired 2315 | . 42 36 156 22 . 4 73 67 260 5 124 98 33 50 58 46 27 63 29 15 128 235 . 37 75 112 88 34 4 45 7 45 117 71 109 Gun 1471 | . 42 36 153 21 . . 68 52 216 . 82 61 25 26 7 20 8 28 5 . 115 178 . 30 . 89 58 13 . 11 . 31 23 29 44 Cannon 516 | . . . . . . . . 4 42 . 29 15 . . 36 20 17 13 24 14 6 27 . 7 59 3 19 21 . 9 . . 76 32 43 Launcher 162 | . . . 3 1 . 4 5 11 2 . 5 7 . 16 1 . . 1 . . 4 12 . . 16 20 11 . 4 12 1 4 3 . 19 Special 166 | . . . . . . . . . . 5 8 15 8 8 14 6 2 21 . 1 3 18 . . . . . . . 13 6 10 15 10 3 Kinetic 1211 | . 42 36 153 21 . . 68 38 254 . 56 40 10 22 1 20 8 28 4 . 115 119 . 30 . 84 3 13 . 9 . . 11 25 1 Thermal 367 | . . . . . . . . 18 4 . 8 16 15 3 21 20 13 1 1 . 6 5 . . . 8 74 7 . 11 . . 65 10 61 Explosive 137 | . . . 3 1 . 4 5 11 2 . 5 7 . . . . . 1 . . 4 12 . . 16 20 11 . 4 12 1 4 . . 14 Electromagnetic 434 | . . . . . . . . . . . 47 20 . 17 22 . 4 12 24 14 . 81 . 7 59 . . 14 . . . 31 26 26 30 Robot Hit Streak 31 | . 11 15 13 6 . 1 11 27 18 5 18 25 8 8 15 21 24 26 16 12 25 14 . 12 19 31 20 9 10 8 11 12 24 8 12 Robot Miss Streak 8 | . 3 5 4 3 . 2 3 3 3 . 8 5 3 7 3 1 1 3 2 1 5 3 . 2 2 4 4 1 . 1 . 4 2 4 3 Penetration Max 1 | . . . . . . . . . . . . . . . . 1 1 1 . . 1 1 . 1 . 1 . 1 . . . . . 1 . Secondary Targets 20 | . 1 1 5 . . . 1 1 2 . . . . 2 . . . . . . 3 1 . . . 3 . . . . . . . . . Max Gunslinging Chain 1 | . 1 1 1 . . . 1 1 1 . . . . 1 . . . . . . 1 1 . . . 1 . . . . . . . . . Capacitor 75 | . . . . . . . . . . . . . . . . . . . . . . . . . . . 56 19 . . . . . . . Shots Hit Robots 1688 | . 26 19 111 11 6 1 59 47 186 5 99 66 29 38 50 40 14 58 19 15 83 182 5 20 58 84 65 24 10 39 9 33 88 36 53 Core Hits 1045 | . 12 9 44 7 . 6 46 29 79 . 91 63 12 38 10 10 4 11 8 7 41 125 1 8 55 104 34 12 20 41 6 15 31 15 51 Critical Hits 102 | . . . 1 . . . 1 . 2 . 1 . . . . 1 . 1 . 1 18 21 1 3 4 14 2 3 1 4 . 2 6 10 5 Critical Kills 42 | . . . . . . . 1 . 1 . 1 . . . . . . . . . 9 9 . . . 5 2 1 1 2 . 1 3 5 1 Critical Parts Destroyed 53 | . . . 1 . . . . . 1 . . . . . . . . 1 . 1 9 11 . 3 4 8 . 2 . 2 . 1 2 4 3 Melee Attacks 155 | . . . . . 6 . . . . . 2 3 8 2 13 . 6 4 . 1 3 24 5 2 . 15 . . 13 24 3 6 13 2 . Impact . | . . . . . . . . . . . . . . . . . . . . . . . . . . . . . . . . . . . . Slashing 88 | . . . . . . . . . . . 2 3 8 2 13 . 6 4 . 1 3 24 5 2 . 15 . . . . . . . . . Piercing 61 | . . . . . . . . . . . . . . . . . . . . . . . . . . . . . 13 24 3 6 13 2 . Sneak Attacks 27 | . . . . . 5 . . . . . 1 . 2 . 4 . 1 . . 1 . 1 . . . . . . 3 3 3 . 2 1 . Combat Hostiles 10 | . . . . . . . . . . . . . . . 2 . . . . . . . . . . . . . . 3 2 . 2 1 . Follow-up Attacks 3 | . . . . . . . . . . . . . . . . . . . . . . . . . . . . . 1 2 . . . . . Damage Inflicted 69975 | . 398 252 2028 289 . 194 1650 1494 3712 . 2937 1821 497 1661 1506 1109 521 1165 629 493 3271 8216 334 440 5190 6567 3140 802 2297 5211 1029 1463 3304 732 5623 Guns 22224 | . 398 252 1731 171 . . 894 568 2923 . 987 1012 239 285 142 479 186 459 30 . 2293 3794 . 440 . 1368 1189 293 . 196 . 526 445 203 721 Cannons 11076 | . . . . . . . . 69 653 . 573 279 . . 816 630 213 272 599 355 . 368 . . 1231 39 604 505 . 315 . . 2279 397 879 Explosions 32268 | . . . 295 118 . 194 756 857 107 . 1256 530 . 1376 34 . . 270 . . 939 3725 . . 3959 4870 1347 . 1872 3880 686 778 396 . 4023 Melee 4263 | . . . . . . . . . . . 121 . 258 . 492 . 111 164 . 138 . 321 334 . . 261 . . 425 820 343 159 184 132 . Ramming 144 | . . . 2 . . . . . 29 . . . . . 22 . 11 . . . 39 8 . . . 29 . 4 . . . . . . . Kinetic 18715 | . 398 252 1731 171 . . 894 464 3524 . 765 848 69 201 31 479 186 459 30 . 2293 3093 . 440 . 1209 . 293 . 315 . . 439 120 11 Thermal 9137 | . . . . . . . . 173 52 . 180 389 170 331 491 630 213 . . . 32 245 . . 62 446 1793 74 . 196 . . 1840 112 1708 Explosive 28339 | . . . 295 118 . 194 756 857 107 . 1212 420 . . . . . 270 . . 87 3516 . . 3897 4622 1347 . 1872 3880 686 778 93 . 3332 Electromagnetic 9377 | . . . . . . . . . . . 659 164 . 1129 470 . . 272 599 355 820 1033 . . 1231 . . 431 . . . 526 748 368 572 Impact . | . . . . . . . . . . . . . . . . . . . . . . . . . . . . . . . . . . . . Slashing 2200 | . . . . . . . . . . . 121 . 258 . 492 . 111 164 . 138 . 321 334 . . 261 . . . . . . . . . Piercing 2063 | . . . . . . . . . . . . . . . . . . . . . . . . . . . . . 425 820 343 159 184 132 . Highest Corruption 21 | . 1 1 . . . . . . 8 21 21 2 2 2 2 16 16 . . . . 4 . . . 4 14 17 . 3 2 5 18 18 9 Average Corruption 7 | . 1 1 . . . . . . 3 14 9 1 1 1 1 13 10 . . . . 1 . . . 1 7 15 . 2 2 4 10 18 4 Corruption Purged 58 | . . . . . . . . . 4 2 19 3 2 2 2 . 17 . . . . 4 . . . 3 . . . . . . . . . Effects 594 | . . 1 . . . . . . 66 7 61 1 . 2 3 20 56 . . . . 7 . . . 11 52 42 . 21 5 26 77 117 19 Message Errors 108 | . . 1 . . . . . . 17 1 9 . . 2 2 2 9 . . . . 1 . . . 2 4 7 . 4 4 7 17 18 1 Matter Fused 102 | . . . . . . . . . 8 2 13 . . . . 7 7 . . . . 2 . . . 1 12 2 . 7 . 2 14 19 6 Heat Flow Errors 76 | . . . . . . . . . 12 2 10 . . . 1 1 9 . . . . . . . . . 11 6 . 2 1 4 6 9 2 Energy Discharges 61 | . . . . . . . . . 7 1 9 . . . . . 4 . . . . 1 . . . 2 3 3 . 4 . 5 8 12 2 Parts Rejected 4 | . . . . . . . . . 1 . . . . . . . 1 . . . . . . . . . 1 . . . . . . . 1 Data Loss (minor) 51 | . . . . . . . . . 6 . 5 1 . . . 2 4 . . . . . . . . 4 5 4 . 3 . 1 6 9 1 Data Loss (major) 22 | . . . . . . . . . 2 . . . . . . 2 8 . . . . . . . . . 2 3 . . . . . 4 1 Misfires 26 | . . . . . . . . . 1 . 6 . . . . . 2 . . . . . . . . . 3 1 . . . 2 2 9 . Alerts 7 | . . . . . . . . . . . . . . . . . . . . . . . . . . . 4 . . . . . 2 1 . Misdirections 50 | . . . . . . . . . . . 2 . . . . 3 5 . . . . . . . . . 2 10 . . . . 6 22 . Targeting Errors 75 | . . . . . . . . . 11 1 6 . . . . 1 6 . . . . 3 . . . 2 4 5 . 1 . 5 13 13 4 Weapon Failures 12 | . . . . . . . . . 1 . 1 . . . . 2 1 . . . . . . . . . 1 1 . . . . 3 1 1 Overload Shots 1 | . . . . . . . . . . . . . . . . . . . 1 . . . . . . . . . . . . . . . . Overflow Damage 2475 | . . . . . . 1 . 76 4 . 165 3 83 63 191 . 125 5 . . 79 168 . . 158 170 75 10 162 238 167 78 75 67 312 Projectiles 366 | . . . . . . . . . 4 . . 3 . . 75 . 44 5 . . . 6 . . 42 . 7 10 . 23 . . 75 67 5 Explosions 1745 | . . . . . . 1 . 76 . . 165 . . 63 . . . . . . 79 162 . . 116 170 68 . 162 169 167 40 . . 307 Melee 364 | . . . . . . . . . . . . . 83 . 116 . 81 . . . . . . . . . . . . 46 . 38 . . . Knockbacks 12 | . . . . . . . . . 5 . . . . . . . . . . . 1 . . . . . . . . 2 . . 4 . . Impact 1 | . . . . . . . . . . . . . . . . . . . . . 1 . . . . . . . . . . . . . . Kinetic 11 | . . . . . . . . . 5 . . . . . . . . . . . . . . . . . . . . 2 . . 4 . . Secondary . | . . . . . . . . . . . . . . . . . . . . . . . . . . . . . . . . . . . . Self-Inflicted Damage 1295 | . . . 1 . . 40 . 66 14 . . 19 . 25 29 . 5 . . . 76 419 . . 141 288 70 . . . . . 102 . . Shots 39 | . . . . . . 1 . 4 1 . . 2 . 4 1 . . . . . 3 8 . . 6 7 1 . . . . . 1 . . Rammed 25 | . . . 1 . . . . . 3 . . . . . 1 . 1 . . . 4 2 . . . 12 . 1 . . . . . . . Targets Rammed 26 | . . . 1 . . . . . 3 . . . . . 1 . 1 . . . 4 2 . . . 12 . 2 . . . . . . . Kicked . | . . . . . . . . . . . . . . . . . . . . . . . . . . . . . . . . . . . . Crushed 1 | . . . . . . . . . . . . . . . . . . . . . . . . . . . . 1 . . . . . . . Highest Temperature 411 | . 1 4 30 17 . . 45 306 272 195 282 204 188 58 306 330 300 8 148 . 411 339 . . 171 156 336 243 . 223 249 187 222 261 156 Average Temperature 79 | . 1 4 8 7 . . 12 80 74 73 84 96 67 24 81 128 98 4 36 . 137 76 . . 64 60 126 70 . 51 75 22 64 51 77 Received Heat Transfer 6883 | . 30 33 333 42 . . 288 315 690 . 372 541 261 135 102 . . 54 9 . 678 785 . . 471 795 88 12 66 252 27 36 333 72 63 Effects 9 | . . . . . . . . . . . . . . . . . . . . . 4 1 . . . . 4 . . . . . . . . Energy Bleed 1 | . . . . . . . . . . . . . . . . . . . . . . . . . . . 1 . . . . . . . . Interference 4 | . . . . . . . . . . . . . . . . . . . . . . 1 . . . . 3 . . . . . . . . Matter Decay 1 | . . . . . . . . . . . . . . . . . . . . . 1 . . . . . . . . . . . . . . Short Circuit 1 | . . . . . . . . . . . . . . . . . . . . . 1 . . . . . . . . . . . . . . Damage (major) 2 | . . . . . . . . . . . . . . . . . . . . . 2 . . . . . . . . . . . . . . Siege Activations 8 | . . . . . . . . . . . . . . . . . . 1 1 . 1 1 . . 1 3 . . . . . . . . . Total Turns 192 | . . . . . . . . . . . . . . . . . . 20 15 . 48 20 . . 18 71 . . . . . . . . . Longest Duration 48 | . . . . . . . . . . . . . . . . . . 20 15 . 48 20 . . 18 43 . . . . . . . . . Robots Corrupted 28 | . . . . . . . . . . . 2 . . 3 2 . . . 3 1 . 3 . . 7 . . . . . . 1 4 1 1 Combat Hostiles 28 | . . . . . . . . . . . 2 . . 3 2 . . . 3 1 . 3 . . 7 . . . . . . 1 4 1 1 Parts Fried 60 | . . . . . . . . . . . 3 2 . 7 4 . . . 10 2 1 10 . . 7 . . 2 . . . 3 5 3 1 Impact Corruptions 1 | . . . . . . . . . . . . . . . 1 . . . . . . . . . . . . . . . . . . . . Robots Melted . | . . . . . . . . . . . . . . . . . . . . . . . . . . . . . . . . . . . . Combat Hostiles . | . . . . . . . . . . . . . . . . . . . . . . . . . . . . . . . . . . . . Parts Melted 25 | . . . . . . . . . . . 1 2 1 . . . 2 . 1 . . . . . . . 3 . . 2 . . 11 . 2 Heat Transferred 10576 | . . . . . . . . 359 111 . 300 650 333 411 650 950 300 . . . 50 175 . . 50 459 2183 74 . 385 . . 1554 111 1471 Parts Sabotaged 16 | . . . . . . . . . . . . . . . . . . . . . . . . . . . . . . . . . . 16 . Parts Stolen . | . . . . . . . . . . . . . . . . . . . . . . . . . . . . . . . . . . . . Parts Stripped . | . . . . . . . . . . . . . . . . . . . . . . . . . . . . . . . . . . . . Power Chain Reactions 10 | . . . . . . . . . . . 1 1 . 4 . . . . . . 1 1 . . 1 . . . . . . . . . 1 Missiles Intercepted . | . . . . . . . . . . . . . . . . . . . . . . . . . . . . . . . . . . . . Alert | -11 -10 -10 -9 -9 -9 -8 -8 -8 -7 -7 -7 -7 -7 -7 -6 -6 -6 -6 -6 -6 -6 -5 -5 -5 -5 -4 -4 -4 -3 -3 -2 -2 -2 -2 -1 ------- Run | Scr Mat Min Mat Min Exi Min Mat Gar Fac Was Fac Gar Fac Gar Fac Was Fac Ext Cet Arc Hub Fac Was Fac Gar Fac Gar Fac Res Gar Res Gar Res Gar Acc Peak Influence 1726 | . 220 155 406 272 . 126 393 996 1048 375 999 1273 737 526 277 56 101 425 604 333 1167 1726 587 356 1041 1351 1600 1007 804 1646 1707 1711 968 1017 800 Initial 1130 | . . . 25 157 . . 48 102 522 360 262 651 667 10 275 55 32 . 97 181 116 571 587 270 154 546 927 840 463 603 925 1130 962 194 609 Average 529 | . 96 81 183 129 . 50 163 528 420 372 347 976 285 233 148 49 29 159 243 291 217 809 547 270 638 816 1291 894 563 1300 1205 1370 470 609 501 Maximum Alert Level 5 | . 1 . 2 1 . . 1 3 3 1 3 4 3 2 1 . . 2 2 1 4 5 2 1 3 4 5 3 3 5 5 5 3 3 3 Low Security (%) 31 | 100 88 100 64 74 . 100 69 10 22 . 45 . 58 47 68 100 100 68 61 20 58 . . 14 11 . . . . . . . . 2 . Level 1 18 | . 11 . 32 25 . . 30 20 36 100 24 . . 28 31 . . 30 21 79 28 . 19 85 15 . . . . . . . 30 26 41 Level 2 20 | . . . 2 . . . . 38 27 . 7 5 33 24 . . . . 16 . 8 47 80 . 23 63 . . 80 9 . . 62 35 42 Level 3 16 | . . . . . . . . 29 13 . 22 76 8 . . . . . . . 2 33 . . 49 11 18 100 19 11 59 . 7 35 15 Level 4 11 | . . . . . . . . . . . . 17 . . . . . . . . 1 11 . . . 25 78 . . 63 18 76 . . . Level 5 2 | . . . . . . . . . . . . . . . . . . . . . . 6 . . . . 2 . . 15 21 23 . . . High Security . | . . . . . . . . . . . . . . . . . . . . . . . . . . . . . . . . . . . . Max Security . | . . . . . . . . . . . . . . . . . . . . . . . . . . . . . . . . . . . . Squads Dispatched 111 | . 2 . 6 . . . 2 . 16 . 10 . 5 . 7 . 3 2 . . 9 18 . 1 . 8 . 2 . . 3 . 7 . 10 Investigation 17 | . 1 . 2 . . . 1 . 5 . 2 . 2 . 1 . 1 . . . . 1 . . . . . . . . . . . . 1 Extermination 31 | . . . . . . . . . 6 . 2 . 2 . 2 . 1 . . . 3 3 . 1 . 2 . 1 . . 1 . 4 . 3 Reinforcement 35 | . 1 . 4 . . . 1 . 2 . 2 . 1 . 4 . 1 2 . . 3 6 . . . 2 . 1 . . 1 . 2 . 2 Assault 12 | . . . . . . . . . . . 1 . . . . . . . . . 2 6 . . . 2 . . . . . . . . 1 Garrison 16 | . . . . . . . . . 3 . 3 . . . . . . . . . 1 2 . . . 2 . . . . 1 . 1 . 3 Intercept . | . . . . . . . . . . . . . . . . . . . . . . . . . . . . . . . . . . . . Construction Impeded 9 | . . . . . . . . . . . . . . . . . . . . . 1 1 . . . 2 . 1 . . 1 . 1 . 2 Haulers Reinforced 5 | . . . . . . . . . 1 . 1 . . . 1 . . . . . . 2 . . . . . . . . . . . . . Stealth | -11 -10 -10 -9 -9 -9 -8 -8 -8 -7 -7 -7 -7 -7 -7 -6 -6 -6 -6 -6 -6 -6 -5 -5 -5 -5 -4 -4 -4 -3 -3 -2 -2 -2 -2 -1 --------- Run | Scr Mat Min Mat Min Exi Min Mat Gar Fac Was Fac Gar Fac Gar Fac Was Fac Ext Cet Arc Hub Fac Was Fac Gar Fac Gar Fac Res Gar Res Gar Res Gar Acc Distress Signals 28 | . . . 1 . . . 2 . 6 . 3 1 . . 1 . . 2 . . 2 6 . 1 . 1 . . . . 1 . . . 1 Communications Jammed 164 | . . . . . . . . . . . . . . . . . . . . . . . . . . 2 . . 2 . 90 . 21 21 28 Distress Signals 161 | . . . . . . . . . . . . . . . . . . . . . . . . . . . . . 2 . 90 . 21 21 27 Times Spotted 819 | . 14 9 29 10 . 1 24 29 68 5 38 35 10 33 33 5 3 24 18 4 55 89 . 4 28 44 25 8 9 28 16 19 34 41 27 Peak Tracking Total 11 | . 3 3 5 4 . 3 8 5 7 3 5 5 5 10 5 2 1 4 5 2 8 11 . 2 10 10 6 3 5 7 9 4 4 6 9 Tactical Retreats 109 | . 1 1 . 2 . . 1 11 18 . 4 7 2 10 1 . . 1 . . 10 6 . . 2 5 9 1 . 7 . 1 2 5 2 Traps | -11 -10 -10 -9 -9 -9 -8 -8 -8 -7 -7 -7 -7 -7 -7 -6 -6 -6 -6 -6 -6 -6 -5 -5 -5 -5 -4 -4 -4 -3 -3 -2 -2 -2 -2 -1 ------- Run | Scr Mat Min Mat Min Exi Min Mat Gar Fac Was Fac Gar Fac Gar Fac Was Fac Ext Cet Arc Hub Fac Was Fac Gar Fac Gar Fac Res Gar Res Gar Res Gar Acc Traps Triggered 53 | . 1 . 1 . . . 1 6 4 . 1 4 4 1 3 . 1 1 . . . 2 . . 2 2 2 1 . 4 1 2 1 8 . Indirectly . | . . . . . . . . . . . . . . . . . . . . . . . . . . . . . . . . . . . . Trap Hack Attempts . | . . . . . . . . . . . . . . . . . . . . . . . . . . . . . . . . . . . . Triggered . | . . . . . . . . . . . . . . . . . . . . . . . . . . . . . . . . . . . . Disarmed . | . . . . . . . . . . . . . . . . . . . . . . . . . . . . . . . . . . . . Reprogrammed . | . . . . . . . . . . . . . . . . . . . . . . . . . . . . . . . . . . . . Reused 31 | . . . . . . . 3 4 7 . . 3 1 . 1 . 1 . . . . 2 . . . 3 . 1 . 1 . 1 3 . . Traps Reconfigurated 101 | . . . . . . . 6 10 19 . . 3 6 2 5 . 3 9 . . . 10 . . . 10 . 4 . 4 . 1 6 3 . Traps Extracted . | . . . . . . . . . . . . . . . . . . . . . . . . . . . . . . . . . . . . Installed 5 | . . . . 5 . . . . . . . . . . . . . . . . . . . . . . . . . . . . . . . Triggered 35 | . . . . . . . 3 4 7 . . 3 2 3 1 . 1 . . . . 2 . . . 3 . 1 . 1 . 1 3 . . Machines | -11 -10 -10 -9 -9 -9 -8 -8 -8 -7 -7 -7 -7 -7 -7 -6 -6 -6 -6 -6 -6 -6 -5 -5 -5 -5 -4 -4 -4 -3 -3 -2 -2 -2 -2 -1 ---------- Run | Scr Mat Min Mat Min Exi Min Mat Gar Fac Was Fac Gar Fac Gar Fac Was Fac Ext Cet Arc Hub Fac Was Fac Gar Fac Gar Fac Res Gar Res Gar Res Gar Acc Machines Disabled 118 | . . . 1 . . 1 1 6 3 . 2 3 . . . . 2 3 3 1 38 12 . . 5 7 3 1 2 7 2 4 2 4 5 Max in Single Turn 11 | . . . 1 . . 1 1 2 1 . 1 1 . . . . 1 1 1 . 11 2 . . 1 5 1 1 1 2 1 2 1 1 1 Garrison Access 9 | . . . . . . . . . 1 . . . . . 2 . 1 . . . 2 2 . 1 . . . . . . . . . . . Garrison Relay 20 | . . . . . . . . 3 . . . 2 . . . . . . . . . . . . 3 . 2 . . 5 . 2 . 3 . Network Hub 2 | . . . . . . . . . . . . . . . . . . . . . 2 . . . . . . . . . . . . . . Energy Cycler 2 | . . . . . . . . . . . . . . . . . . . . . . . . . . . . . . . . . . . 2 Machines Sabotaged . | . . . . . . . . . . . . . . . . . . . . . . . . . . . . . . . . . . . . Garrisons Compromised . | . . . . . . . . . . . . . . . . . . . . . . . . . . . . . . . . . . . . Overloaded Fab Kills . | . . . . . . . . . . . . . . . . . . . . . . . . . . . . . . . . . . . . Fab Network Shutdowns 2 | . . . . . . . . . 1 . 1 . . . . . . . . . . . . . . . . . . . . . . . . Hacking | -11 -10 -10 -9 -9 -9 -8 -8 -8 -7 -7 -7 -7 -7 -7 -6 -6 -6 -6 -6 -6 -6 -5 -5 -5 -5 -4 -4 -4 -3 -3 -2 -2 -2 -2 -1 --------- Run | Scr Mat Min Mat Min Exi Min Mat Gar Fac Was Fac Gar Fac Gar Fac Was Fac Ext Cet Arc Hub Fac Was Fac Gar Fac Gar Fac Res Gar Res Gar Res Gar Acc Machines Accessed 120 | . 3 1 6 . 2 . 8 . 18 . 12 . 7 . 9 . 8 8 2 . 8 10 . 3 . 3 . 2 1 . 1 . 5 . 3 Terminals 66 | . 2 1 4 . . . 4 . 9 . 5 . 3 . 5 . 6 8 2 . 6 3 . . . 1 . 1 . . . . 3 . 3 Fabricators 12 | . . . . . . . . . 3 . 3 . 2 . 1 . . . . . . 1 . . . 1 . . . . . . 1 . . Repair Stations 9 | . . . . . . . 2 . 1 . 2 . . . 1 . . . . . . 1 . 1 . . . 1 . . . . . . . Recycling Units 8 | . 1 . 1 . . . . . 3 . . . . . . . 1 . . . . 2 . . . . . . . . . . . . . Scanalyzers 6 | . . . 1 . . . 1 . 1 . 1 . 1 . . . . . . . . 1 . . . . . . . . . . . . . Garrison Access 17 | . . . . . . . 1 . 1 . 1 . 1 . 2 . 1 . . . 2 2 . 2 . 1 . . 1 . 1 . 1 . . Total Hacks 397 | . 6 5 23 . 5 . 29 . 70 . 30 . 15 . 18 . 26 13 2 . 29 56 . 24 . 11 . 8 3 . 1 . 17 . 6 Successful 235 | . 5 2 19 . 5 . 19 . 49 . 19 . 6 . 11 . 12 8 1 . 11 32 . 10 . 6 . 3 3 . 1 . 10 . 3 Failed 162 | . 1 3 4 . . . 10 . 21 . 11 . 9 . 7 . 14 5 1 . 18 24 . 14 . 5 . 5 . . . . 7 . 3 Catastrophic 28 | . . 1 . . . . 2 . 1 . 1 . 3 . 1 . 3 . 1 . 2 2 . 3 . 1 . 2 . . . . 4 . 1 Database Lockouts . | . . . . . . . . . . . . . . . . . . . . . . . . . . . . . . . . . . . . Manual 161 | . 3 5 10 . 1 . 11 . 28 . 9 . 8 . 4 . 19 2 1 . 22 20 . . . 8 . 2 1 . . . 7 . . Terminals 217 | . 4 5 15 . . . 18 . 37 . 15 . 7 . 10 . 22 13 2 . 22 16 . . . 9 . 3 . . . . 13 . 6 Fabricators 37 | . . . . . . . . . 10 . 6 . 4 . 3 . . . . . . 10 . . . 1 . . . . . . 3 . . Repair Stations 44 | . . . . . . . 6 . 3 . 3 . . . 1 . . . . . . 6 . 20 . . . 5 . . . . . . . Recycling Units 23 | . 2 . 1 . . . . . 8 . . . . . . . 2 . . . . 10 . . . . . . . . . . . . . Scanalyzers 37 | . . . 7 . . . 2 . 10 . 5 . 3 . . . . . . . . 10 . . . . . . . . . . . . . Garrison Access 34 | . . . . . . . 3 . 2 . 1 . 1 . 4 . 2 . . . 7 4 . 4 . 1 . . 3 . 1 . 1 . . Terminal Hacks 71 | . 1 2 5 . 5 . 5 . 16 . 4 . . . 2 . 4 7 1 . 5 5 . . . 1 . 1 . . . . 4 . 3 Record 5 | . . . . . 4 . . . . . . . . . . . . . 1 . . . . . . . . . . . . . . . . Part Schematic 7 | . . 1 . . . . . . 4 . . . . . 1 . . . . . . 1 . . . . . . . . . . . . . Robot Analysis 4 | . . 1 1 . . . . . 1 . . . . . . . . . . . . 1 . . . . . . . . . . . . . Prototype ID Bank 6 | . . . . . . . . . 1 . 3 . . . . . . . . . 1 . . . . . . . . . . . 1 . . Open Door 7 | . . . . . . . . . . . . . . . . . . 6 . . . . . . . . . . . . . . . . 1 Level Access Points 1 | . . . . . . . . . . . . . . . . . . . . . . . . . . . . . . . . . . . 1 Emergency Access Points 1 | . . . 1 . . . . . . . . . . . . . . . . . . . . . . . . . . . . . . . . Terminal Index 5 | . . . . . . . 1 . 1 . . . . . . . 1 . . . 1 1 . . . . . . . . . . . . . Fabricator Index 2 | . . . . . . . . . 1 . . . . . 1 . . . . . . . . . . . . . . . . . . . . Repair Station Index 2 | . . . . . . . . . 1 . . . . . . . . . . . . 1 . . . . . . . . . . . . . Scanalyzer Index 1 | . . . . . . . . . . . . . . . . . . . . . . 1 . . . . . . . . . . . . . Garrison Index 2 | . . . . . . . . . 1 . . . . . . . . . . . 1 . . . . . . . . . . . . . . Unreport Threat 11 | . 1 . . . . . 1 . 4 . . . . . . . . 1 . . 1 . . . . . . . . . . . 2 . 1 Locate Traps 9 | . . . 1 . . . 2 . 2 . . . . . . . 1 . . . 1 . . . . 1 . . . . . . 1 . . Recall Extermination 1 | . . . . . . . . . . . . . . . . . 1 . . . . . . . . . . . . . . . . . . Hauler Manifests 1 | . . . 1 . . . . . . . . . . . . . . . . . . . . . . . . . . . . . . . . Zone Layout 5 | . . . 1 . . . 1 . . . 1 . . . . . 1 . . . . . . . . . . 1 . . . . . . . EX-Prototype ID Bank 1 | . . . . . 1 . . . . . . . . . . . . . . . . . . . . . . . . . . . . . . Fabricator Hacks 15 | . . . . . . . . . 4 . 4 . . . 2 . . . . . . 3 . . . . . . . . . . 2 . . Load Schematic 7 | . . . . . . . . . 2 . 2 . . . 1 . . . . . . 1 . . . . . . . . . . 1 . . Build 8 | . . . . . . . . . 2 . 2 . . . 1 . . . . . . 2 . . . . . . . . . . 1 . . Repair Station Hacks 20 | . . . . . . . 6 . 1 . 2 . . . . . . . . . . 4 . 6 . . . 1 . . . . . . . Scan Component 12 | . . . . . . . 3 . 1 . 1 . . . . . . . . . . 2 . 4 . . . 1 . . . . . . . Repair 8 | . . . . . . . 3 . . . 1 . . . . . . . . . . 2 . 2 . . . . . . . . . . . Recycling Unit Hacks 5 | . 1 . . . . . . . 3 . . . . . . . . . . . . 1 . . . . . . . . . . . . . Report Inventory 5 | . 1 . . . . . . . 3 . . . . . . . . . . . . 1 . . . . . . . . . . . . . Scanalyzer 32 | . . . 7 . . . 2 . 10 . 2 . 3 . . . . . . . . 8 . . . . . . . . . . . . . Insert Component 15 | . . . 3 . . . 1 . 4 . 2 . 1 . . . . . . . . 4 . . . . . . . . . . . . . Analyze 17 | . . . 4 . . . 1 . 6 . . . 2 . . . . . . . . 4 . . . . . . . . . . . . . Garrison Access Hacks 26 | . . . . . . . 1 . 2 . 1 . 1 . 4 . 2 . . . 2 4 . 4 . 1 . . 2 . 1 . 1 . . Unlock Access 9 | . . . . . . . 1 . . . 1 . 1 . . . . . . . 1 . . 1 . 1 . . 1 . 1 . 1 . . Seal Access 8 | . . . . . . . . . 1 . . . . . 2 . 1 . . . 1 2 . 1 . . . . . . . . . . . Coupler Status 9 | . . . . . . . . . 1 . . . . . 2 . 1 . . . . 2 . 2 . . . . 1 . . . . . . Unauthorized Hacks 66 | . 3 . 7 . . . 5 . 13 . 6 . 2 . 3 . 6 1 . . 4 7 . . . 4 . 1 1 . . . 3 . . Terminals 46 | . 2 . 6 . . . 5 . 6 . 4 . 2 . 2 . 5 1 . . 4 2 . . . 3 . 1 . . . . 3 . . Track 10 | . . . 3 . . . 2 . 2 . . . . . . . 1 . . . . . . . . 1 . . . . . . 1 . . Assimilate 2 | . . . . . . . . . . . . . . . 1 . 1 . . . . . . . . . . . . . . . . . . Botnet 26 | . 1 . 3 . . . 2 . 4 . 3 . 1 . 1 . 2 1 . . 2 2 . . . 1 . 1 . . . . 2 . . Disrupt 1 | . . . . . . . . . . . . . . . . . . . . . 1 . . . . . . . . . . . . . . Operators 7 | . 1 . . . . . 1 . . . 1 . 1 . . . 1 . . . 1 . . . . 1 . . . . . . . . . Fabricators 9 | . . . . . . . . . 4 . 2 . . . . . . . . . . 2 . . . 1 . . . . . . . . . Report 3 | . . . . . . . . . 1 . 1 . . . . . . . . . . . . . . 1 . . . . . . . . . Prioritize 2 | . . . . . . . . . 1 . . . . . . . . . . . . 1 . . . . . . . . . . . . . Siphon 4 | . . . . . . . . . 2 . 1 . . . . . . . . . . 1 . . . . . . . . . . . . . Repair Stations 1 | . . . . . . . . . . . . . . . 1 . . . . . . . . . . . . . . . . . . . . Mechanics 1 | . . . . . . . . . . . . . . . 1 . . . . . . . . . . . . . . . . . . . . Recycling Units 9 | . 1 . 1 . . . . . 3 . . . . . . . 1 . . . . 3 . . . . . . . . . . . . . Reject 2 | . . . . . . . . . . . . . . . . . 1 . . . . 1 . . . . . . . . . . . . . Recyclers 1 | . . . . . . . . . . . . . . . . . . . . . . 1 . . . . . . . . . . . . . Mask 1 | . . . . . . . . . . . . . . . . . . . . . . 1 . . . . . . . . . . . . . Tunnel 5 | . 1 . 1 . . . . . 3 . . . . . . . . . . . . . . . . . . . . . . . . . . Scanalyzers . | . . . . . . . . . . . . . . . . . . . . . . . . . . . . . . . . . . . . Garrison Access 1 | . . . . . . . . . . . . . . . . . . . . . . . . . . . . . 1 . . . . . . Reprogram 1 | . . . . . . . . . . . . . . . . . . . . . . . . . . . . . 1 . . . . . . Data Cores Recovered . | . . . . . . . . . . . . . . . . . . . . . . . . . . . . . . . . . . . . Used . | . . . . . . . . . . . . . . . . . . . . . . . . . . . . . . . . . . . . Hacking Detections 94 | . 3 1 5 . . . 7 . 13 . 11 . 7 . 6 . 7 5 2 . 8 6 . 2 . 1 . 2 1 . 1 . 4 . 2 Full Trace Events 10 | . . . 2 . . . . . 2 . 2 . 2 . . . 1 . . . . . . . . . . . . . . . . . 1 Feedback Events . | . . . . . . . . . . . . . . . . . . . . . . . . . . . . . . . . . . . . Feedback Blocked . | . . . . . . . . . . . . . . . . . . . . . . . . . . . . . . . . . . . . Robot Schematics Acquired . | . . . . . . . . . . . . . . . . . . . . . . . . . . . . . . . . . . . . Robots Built . | . . . . . . . . . . . . . . . . . . . . . . . . . . . . . . . . . . . . Matter . | . . . . . . . . . . . . . . . . . . . . . . . . . . . . . . . . . . . . Time . | . . . . . . . . . . . . . . . . . . . . . . . . . . . . . . . . . . . . Total Robot Build Rating . | . . . . . . . . . . . . . . . . . . . . . . . . . . . . . . . . . . . . Part Schematics Acquired 19 | . . 1 3 . . . 1 . 8 . . . . . 1 . . . . . . 5 . . . . . . . . . . . . . Parts Built 10 | . . . . . . . . . 4 . 3 . . . 1 . . . . . . 2 . . . . . . . . . . . . . Matter 1208 | . . . . . . . . . 380 . 336 . . . 102 . . . . . . 178 . . . . . . . . . . 212 . . Time 481 | . . . . . . . . . 190 . 84 . . . 25 . . . . . . 76 . . . . . . . . . . 106 . . Total Part Build Rating 35 | . . . . . . . . . 20 . 12 . . . 1 . . . . . . 2 . . . . . . . . . . . . . Parts Repaired 8 | . . . . . . . 3 . . . 1 . . . . . . . . . . 2 . 2 . . . . . . . . . . . Time 323 | . . . . . . . 102 . . . 30 . . . . . . . . . . 80 . 111 . . . . . . . . . . . Parts Recycled . | . . . . . . . . . . . . . . . . . . . . . . . . . . . . . . . . . . . . Recycled Matter . | . . . . . . . . . . . . . . . . . . . . . . . . . . . . . . . . . . . . Retrieved Matter . | . . . . . . . . . . . . . . . . . . . . . . . . . . . . . . . . . . . . Retrieved Components . | . . . . . . . . . . . . . . . . . . . . . . . . . . . . . . . . . . . . Parts Scanalyzed 13 | . . . 3 . . . 1 . 4 . . . 1 . . . . . . . . 4 . . . . . . . . . . . . . Part Schematics Acquired 12 | . . . 3 . . . 1 . 4 . . . . . . . . . . . . 4 . . . . . . . . . . . . . Parts Damaged 2 | . . . . . . . . . 1 . . . . . . . . . . . . 1 . . . . . . . . . . . . . Bothacking | -11 -10 -10 -9 -9 -9 -8 -8 -8 -7 -7 -7 -7 -7 -7 -6 -6 -6 -6 -6 -6 -6 -5 -5 -5 -5 -4 -4 -4 -3 -3 -2 -2 -2 -2 -1 ------------ Run | Scr Mat Min Mat Min Exi Min Mat Gar Fac Was Fac Gar Fac Gar Fac Was Fac Ext Cet Arc Hub Fac Was Fac Gar Fac Gar Fac Res Gar Res Gar Res Gar Acc Used RIF Installer 8 | . . . . . . . . 1 . . . 1 . 1 . . . . . . . . . . 1 . 1 . . 1 . 1 . 1 . Threat Obfuscator 1 | . . . . . . . . . . . . . . . . . . . . . . . . . . . . . . . . . . 1 . Signal Jammer 1 | . . . . . . . . . . . . . . . . . . . . . . . . . 1 . . . . . . . . . . Robot Detection 1 | . . . . . . . . . . . . . . . . . . . . . . . . . . . . . . . . 1 . . . Patrol Navigation 1 | . . . . . . . . . . . . 1 . . . . . . . . . . . . . . . . . . . . . . . Structural Interface 1 | . . . . . . . . . . . . . . 1 . . . . . . . . . . . . . . . . . . . . . Program Shield 1 | . . . . . . . . . . . . . . . . . . . . . . . . . . . 1 . . . . . . . . Autooverride 1 | . . . . . . . . . . . . . . . . . . . . . . . . . . . . . . 1 . . . . . Robots Hacked 119 | . . . . . 4 . . . . 5 2 7 4 6 13 6 2 . . 1 2 12 . . . . . . . 12 9 9 6 14 5 Non-combat 32 | . . . . . 3 . . . . . 2 . 2 . 7 . 2 . . 1 2 5 . . . . . . . . 2 . 4 . 2 Combat 87 | . . . . . 1 . . . . 5 . 7 2 6 6 6 . . . . . 7 . . . . . . . 12 7 9 2 14 3 Autooverrided 14 | . . . . . . . . . . . . . . . . . . . . . . . . . . . . . . 1 3 3 . 5 2 Robot Hacks Applied 128 | . . . . . 4 . . . . 5 5 11 7 6 14 6 2 . . 1 3 14 . . . . . . . 11 6 8 13 9 3 parse_system 9 | . . . . . 4 . . . . . . 2 . . . . . . . . . 1 . . . . . . . . . 1 1 . . no_distress 4 | . . . . . . . . . . . . . . . . . 2 . . 1 . . . . . . . . . . 1 . . . . find_chute 3 | . . . . . . . . . . . . . . . 1 . . . . . . 2 . . . . . . . . . . . . . deconstruct_machine 4 | . . . . . . . . . . . . . . . 1 . . . . . . 3 . . . . . . . . . . . . . ignore_repairs 3 | . . . . . . . . . . . . . . . 1 . . . . . 1 . . . . . . . . . . . 1 . . drop_inventory 7 | . . . . . . . . . . . . . 1 . 2 . . . . . . . . . . . . . . . . . 2 . 2 purge_threat 12 | . . . . . . . . . . . 2 . 3 . . . . . . . 2 . . . . . . . . . . . 5 . . locate_traps 2 | . . . . . . . . . . . 1 . . . . . . . . . . . . . . . . . . . . . 1 . . recall_investigation 2 | . . . . . . . . . . . 1 . 1 . . . . . . . . . . . . . . . . . . . . . . map_route 1 | . . . . . . . . . . . 1 . . . . . . . . . . . . . . . . . . . . . . . . ignore_targets 11 | . . . . . . . . . . 5 . . . . . 6 . . . . . . . . . . . . . . . . . . . find_garrison 2 | . . . . . . . . . . . . . . . 1 . . . . . . . . . . . . . . . . . 1 . . disrupt_area 2 | . . . . . . . . . . . . . . . . . . . . . . 2 . . . . . . . . . . . . . overload_power 1 | . . . . . . . . . . . . . . . . . . . . . . . . . . . . . . . . 1 . . . wipe_record 1 | . . . . . . . . . . . . 1 . . . . . . . . . . . . . . . . . . . . . . . reboot_system 12 | . . . . . . . . . . . . 2 1 2 3 . . . . . . . . . . . . . . 1 . 1 1 1 . go_dormant 2 | . . . . . . . . . . . . 2 . . . . . . . . . . . . . . . . . . . . . . . overwrite_iff 11 | . . . . . . . . . . . . 1 . 4 . . . . . . . 3 . . . . . . . . . 1 1 1 . formatsys_low 3 | . . . . . . . . . . . . . . . 2 . . . . . . . . . . . . . . . 1 . . . . formatsys_high 36 | . . . . . . . . . . . . 3 1 . 3 . . . . . . 3 . . . . . . . 10 4 4 . 7 1 Relay Couplers Released 99 | . . . . . . . . 10 3 . . 10 . . 5 . 2 . . . 3 3 . 1 12 4 8 . . 21 . 6 . 11 . Machine Destruction 89 | . . . . . . . . 10 . . . 10 . . 2 . 2 . . . 3 3 . 1 12 . 8 . . 21 . 6 . 11 . Programmers 10 | . . . . . . . . . 3 . . . . . 3 . . . . . . . . . . 4 . . . . . . . . . Attached 65 | . . . . . . . . . . 1 1 3 3 1 5 1 . . . . 2 5 . . 1 6 5 3 . 15 . 1 2 8 2 Robots Rewired 11 | . . . . . . . . . . . . . . . . . . 10 . . . 1 . . . . . . . . . . . . . Allies Hacked 3 | . . . . . . . . . . . . 1 . . 1 . . . . . . 1 . . . . . . . . . . . . . Hacks Repelled . | . . . . . . . . . . . . . . . . . . . . . . . . . . . . . . . . . . . . Allies | -11 -10 -10 -9 -9 -9 -8 -8 -8 -7 -7 -7 -7 -7 -7 -6 -6 -6 -6 -6 -6 -6 -5 -5 -5 -5 -4 -4 -4 -3 -3 -2 -2 -2 -2 -1 -------- Run | Scr Mat Min Mat Min Exi Min Mat Gar Fac Was Fac Gar Fac Gar Fac Was Fac Ext Cet Arc Hub Fac Was Fac Gar Fac Gar Fac Res Gar Res Gar Res Gar Acc Total Allies 89 | . . . . . . . . . . . . 3 1 4 9 . 1 18 3 . . 7 . . . . . . . 11 8 7 1 13 3 Largest Group 15 | . . . . . . . . . . . . 2 1 1 4 1 1 11 10 4 2 2 . . . . . . . 10 15 9 4 4 3 Highest-Rated Group 798 | . . . . . . . . . . . . 62 21 12 113 19 10 403 454 407 188 90 . . . . . . . 510 798 400 244 269 269 Highest-Rated Ally 156 | . . . . . . . . . . . . 32 21 12 41 19 10 156 149 125 94 49 . . . . . . . 64 69 69 69 147 147 Total Orders 71 | . . . . . . . . . . . . . . . 4 1 . . 2 . 4 9 . 9 . . . 3 . 8 1 7 17 4 2 STAY 19 | . . . . . . . . . . . . . . . . . . . 1 . 2 . . 1 . . . . . 6 . 2 3 3 1 ROAM 1 | . . . . . . . . . . . . . . . . . . . . . . . . . . . . . . . . . . . 1 FOLLOW 9 | . . . . . . . . . . . . . . . . . . . 1 . 2 . . . . . . . . 2 . 2 1 1 . AID 9 | . . . . . . . . . . . . . . . 4 1 . . . . . . . . . . . . . . 1 3 . . . EXPLORE 33 | . . . . . . . . . . . . . . . . . . . . . . 9 . 8 . . . 3 . . . . 13 . . Ally Attacks 709 | . . . . . . . . . . . . 19 7 15 57 . . 134 95 18 32 37 . . . . . . . 19 82 31 31 95 37 Total Damage 19016 | . . . . . . . . . . . . 603 158 120 1134 . . 3159 2527 746 1075 952 . . . . . . . 624 2940 557 1048 2168 1205 Kills 119 | . . . . . . . . . . . . 8 1 1 8 . . 22 17 2 8 5 . . . . . . . 2 17 3 3 15 7 Allies Corrupted 9 | . . . . . . . . . . . . 1 . . 1 . . . . . . 1 . . . . . . . . 2 1 2 . 1 Allies Melted . | . . . . . . . . . . . . . . . . . . . . . . . . . . . . . . . . . . . . Intel | -11 -10 -10 -9 -9 -9 -8 -8 -8 -7 -7 -7 -7 -7 -7 -6 -6 -6 -6 -6 -6 -6 -5 -5 -5 -5 -4 -4 -4 -3 -3 -2 -2 -2 -2 -1 ------- Run | Scr Mat Min Mat Min Exi Min Mat Gar Fac Was Fac Gar Fac Gar Fac Was Fac Ext Cet Arc Hub Fac Was Fac Gar Fac Gar Fac Res Gar Res Gar Res Gar Acc Robot Analysis Total 4 | . . 1 1 . . . . . 1 . . . . . . . . . . . . 1 . . . . . . . . . . . . . Derelict Logs Recovered 3 | . . 2 . 1 . . . . . . . . . . . . . . . . . . . . . . . . . . . . . . . Drone Launches 30 | . . . . . . . . . . . . . . . . . . . . . . 9 . 7 . . . 2 . . . . 12 . . Drone Recoveries 24 | . . . . . . . . . . . . . . . . . . . . . . 7 . 4 . . . 2 . . . . 11 . . Exploration | -11 -10 -10 -9 -9 -9 -8 -8 -8 -7 -7 -7 -7 -7 -7 -6 -6 -6 -6 -6 -6 -6 -5 -5 -5 -5 -4 -4 -4 -3 -3 -2 -2 -2 -2 -1 ------------- Run | Scr Mat Min Mat Min Exi Min Mat Gar Fac Was Fac Gar Fac Gar Fac Was Fac Ext Cet Arc Hub Fac Was Fac Gar Fac Gar Fac Res Gar Res Gar Res Gar Acc Turns Passed 42425 | 66 424 735 1122 954 500 710 1121 1296 3613 156 1702 1853 1740 1006 2030 306 1252 1425 834 121 1751 2410 496 676 1362 1408 1613 637 336 2339 418 1142 1680 1870 1321 Spaces Moved 22794 | 55 302 616 551 637 322 457 606 670 1784 112 882 1051 1125 470 1119 131 616 708 337 49 751 936 280 274 651 608 870 493 415 1446 236 646 828 993 767 Core 22 | 6 . . . . . . . . . . 2 . . . . . . . . . . . . . . . 9 . . . . . . 5 . Treads 5119 | . 1 . 177 2 . . 34 9 119 . . . . . . . . 370 336 49 751 936 280 274 651 492 365 150 . . . . . 113 10 Legs 5630 | . . . . . . . . . . . . . . . . . . . . . . . . . . 116 496 116 114 1446 236 646 828 875 757 Wheels 11495 | 49 301 616 374 635 322 457 572 661 1665 112 880 1051 1125 470 1119 131 616 338 1 . . . . . . . . . . . . . . . . Hover . | . . . . . . . . . . . . . . . . . . . . . . . . . . . . . . . . . . . . Flight 528 | . . . . . . . . . . . . . . . . . . . . . . . . . . . . 227 301 . . . . . . Fastest Speed 37 | 50 100 110 110 130 140 150 150 150 130 130 120 130 130 140 140 140 140 140 150 180 180 160 160 180 180 120 50 37 37 120 150 140 110 140 140 Average Speed 147 | 96 109 110 145 139 147 150 155 159 169 130 133 130 136 140 141 149 145 172 181 180 190 183 165 180 180 171 138 96 60 135 150 142 144 153 140 Slowest Speed 1700 | 100 180 110 200 200 150 150 240 240 260 130 1700 140 140 140 150 150 150 200 200 180 200 200 180 180 180 180 350 160 150 150 150 150 170 800 185 Overloaded Moves . | . . . . . . . . . . . . . . . . . . . . . . . . . . . . . . . . . . . . Propulsion Burnouts . | . . . . . . . . . . . . . . . . . . . . . . . . . . . . . . . . . . . . Robots Hopped 2 | . . . . . . . . . . . . . . . . . . . . . . . . . . . . 2 . . . . . . . Cave-ins Triggered . | . . . . . . . . . . . . . . . . . . . . . . . . . . . . . . . . . . . . Exploration Rate (%) 54 | 4 53 99 61 99 72 95 42 78 36 95 19 66 26 50 34 89 24 87 83 67 64 41 95 14 93 15 69 13 9 85 9 56 28 82 15 Regions Visited 35 Branch Regions 8 Pre-discovered Areas 6 | . 1 . 1 . 1 . . . 3 . . . . . . . . . . . . . . . . . . . . . . . . . . Known Exits Taken 13 | . . 1 1 1 . 1 1 . . . 1 . 1 . . . . . . . 1 . . 1 . 1 . . 1 . 1 . 1 . . Unknown Exits Taken 8 | 1 1 . . . 1 . . . . . . . . . . . 1 1 1 1 . . . . . . . 1 . . . . . . . Scrap Searched 3 | . . 1 . 1 . 1 . . . . . . . . . . . . . . . . . . . . . . . . . . . . . Spaces Dug 353 | . . . 14 . . . 6 26 6 . . . 5 . 10 . 6 . . . 48 13 . 2 . 10 77 3 6 61 . . 24 . 36 Terrain Destroyed 1738 | . . . 26 11 . 30 27 70 15 . 59 16 5 6 12 3 8 17 2 . 427 170 . 4 103 153 114 5 45 123 29 55 51 6 146 Melee 56 | . . . . . . . . . . . . . 5 . 5 . 5 . . . 3 13 . 2 . 8 . . 6 . . . 9 . . Projectile 127 | . . . . . . . . . 5 . . . . . 7 3 3 . 2 . 24 22 . 2 . 15 1 5 . . . . 23 6 9 AOE 1555 | . . . 26 11 . 30 27 70 10 . 59 16 . 6 . . . 17 . . 400 135 . . 103 130 113 . 39 123 29 55 19 . 137 Terrain Rammed . | . . . . . . . . . . . . . . . . . . . . . . . . . . . . . . . . . . . . Walls Destroyed . | . . . . . . . . . . . . . . . . . . . . . . . . . . . . . . . . . . . . Machines Disabled . | . . . . . . . . . . . . . . . . . . . . . . . . . . . . . . . . . . . . Actions | -11 -10 -10 -9 -9 -9 -8 -8 -8 -7 -7 -7 -7 -7 -7 -6 -6 -6 -6 -6 -6 -6 -5 -5 -5 -5 -4 -4 -4 -3 -3 -2 -2 -2 -2 -1 --------- Run | Scr Mat Min Mat Min Exi Min Mat Gar Fac Was Fac Gar Fac Gar Fac Was Fac Ext Cet Arc Hub Fac Was Fac Gar Fac Gar Fac Res Gar Res Gar Res Gar Acc Total 29070 | 64 355 638 723 684 343 477 708 820 2158 120 1279 1429 1278 759 1487 196 932 855 534 66 934 1355 306 418 765 825 1241 636 473 1756 293 821 1177 1273 892 Wait 2822 | . 14 3 37 16 . 14 22 30 113 . 244 217 57 222 216 16 254 43 133 3 45 77 . 92 21 27 243 63 14 172 27 94 166 116 11 Move 22762 | 54 301 615 550 636 321 456 606 669 1784 111 882 1050 1125 469 1119 130 615 707 336 48 750 936 279 274 650 607 868 488 415 1445 235 645 828 992 766 Hop 2 | . . . . . . . . . . . . . . . . . . . . . . . . . . . . 2 . . . . . . . Pick Up 353 | 4 8 1 18 3 3 . 11 7 30 1 15 16 24 . 27 4 7 5 11 2 14 31 5 10 13 21 7 3 4 7 6 2 16 15 2 Fast Attach 226 | 6 1 . 3 . 1 . 5 . 11 . 5 3 5 . 4 . 3 11 4 . 3 18 7 1 4 16 20 19 10 12 5 7 11 22 9 Attach 169 | . 1 . 5 1 3 1 2 2 8 . 9 10 4 4 11 4 2 1 2 . 7 27 1 4 1 25 3 2 1 5 1 . 7 9 6 Detach 68 | . 1 . 2 . 4 . . . . . 2 3 . . 8 4 . . 3 . 3 8 5 1 1 3 3 3 4 5 1 . 1 2 1 Swap 533 | . 4 . 15 6 3 2 14 20 39 2 35 26 22 16 34 9 17 19 13 2 20 45 1 4 12 18 8 5 5 15 4 16 39 22 21 Drop 319 | . 4 1 13 6 2 . 8 3 36 1 12 7 12 . 7 2 8 16 16 2 14 20 3 8 11 12 8 16 5 9 4 8 21 15 9 Fire 1478 | . 21 18 79 11 . 4 40 41 134 5 73 66 21 38 46 27 19 47 16 8 71 167 . 22 48 69 81 33 4 45 7 32 75 43 67 Melee 150 | . . . . . 6 . . . . . 2 3 8 2 13 . 6 4 . 1 3 24 5 2 . 15 . . 11 21 3 6 13 2 . Ram 3 | . . . 1 . . . . . . . . . . . 1 . 1 . . . . . . . . . . . . . . . . . . Kick . | . . . . . . . . . . . . . . . . . . . . . . . . . . . . . . . . . . . . Crush 23 | . . . . . . . . . 3 . . . . . . . . . . . 4 2 . . . 12 . 2 . . . . . . . Escape Stasis 155 | . . . . . . . . 48 . . . 27 . 8 . . . 2 . . . . . . 4 . . . . 20 . 11 . 35 . Rewire 2 | . . . . . . . . . . . . 1 . . 1 . . . . . . . . . . . . . . . . . . . . Trap 5 | . . . . 5 . . . . . . . . . . . . . . . . . . . . . . . . . . . . . . . Miscellaneous . | . . . . . . . . . . . . . . . . . . . . . . . . . . . . . . . . . . . . Route ------- -11/Scrapyard -10/Materials (discovered 2 exits: *Mat / *Min) -10/Mines (discovered 2 exits: *Mat x2) -9/Materials (discovered 4 exits: *Mat x2 / *Min / Sto) -9/Mines (discovered 3 exits: *Mat x2 / *Exi) -9/Exiles -8/Mines (discovered 2 exits: *Mat x2) -8/Materials (discovered 2 exits: *Fac / Gar) -8/Garrison (discovered 3 exits: *Fac x3) -7/Factory -7/Waste -7/Factory (discovered 2 exits: Fac / Gar) -7/Garrison (discovered 3 exits: *Fac x3) -7/Factory (discovered 2 exits: *Fac / Gar) -7/Garrison -6/Factory -6/Waste -6/Factory -6/Extension (discovered 2 exits: *Fac / *Cet) -6/Cetus (discovered 3 exits: *Fac x2 / *Arc) -6/Archives (discovered 3 exits: Fac / *Hub x2) -6/Hub_04(d) (discovered 3 exits: *Fac x3) -5/Factory (discovered 2 exits: *Fac / [*Upp]) -5/Waste -5/Factory (discovered 2 exits: *Fac / Gar) -5/Garrison (discovered 2 exits: *Fac x2) -4/Factory -4/Garrison (discovered 2 exits: *Fac x2) -4/Factory -3/Research -3/Garrison (discovered 2 exits: *Res x2) -2/Research -2/Garrison -2/Research (discovered 2 exits: *Tes / Gar) -2/Garrison (discovered 3 exits: *Acc x3) -1/Access To Epsilon Eridani History --------- Turn | Location | Event 20 | -11/Scrapyard | Discovered new exit (range 15) 67 | -11/Scrapyard | Entered Materials 309 | -10/Materials | Build established: Mutant 330 | -10/Materials | Discovered new exit (range 6) 396 | -10/Materials | Identified exit to Materials 460 | -10/Materials | Discovered new exit (range 8) 491 | -10/Materials | Entered Mines 561 | -10/Mines | Discovered exit to Materials (range 3) 701 | -10/Mines | Learned Materials emergency access door positions 814 | -10/Mines | Received a Rocket Launcher from a helpful Derelict 995 | -10/Mines | Discovered exit to Materials (range 8) 1226 | -10/Mines | Entered Materials 1226 | -9/Materials | Evolved 2 slots: Utility x2 1227 | -9/Materials | Identified exit to Storage 1653 | -9/Materials | Discovered new exit (range 18) 1817 | -9/Materials | Identified exit to Materials 2139 | -9/Materials | Discovered exit to Materials (range 16) 2325 | -9/Materials | Discovered new exit (range 7) 2332 | -9/Materials | Identified exit to Mines 2348 | -9/Materials | Entered Mines 2366 | -9/Mines | Met a Derelict bent on vengeance 2401 | -9/Mines | Assembled infested the area 2539 | -9/Mines | Found a hidden stash of uninstalled traps 2705 | -9/Mines | Joined a pair of Derelicts in attacking an 0b10 outpost 2841 | -9/Mines | Discovered new exit (range 5) 2845 | -9/Mines | Identified exit to Exiles 2936 | -9/Mines | Discovered exit to Materials (range 16) 3043 | -9/Mines | Learned 2 Materials zone layouts 3045 | -9/Mines | Discovered exit to Materials (range 12) 3302 | -9/Mines | Entered Exiles 3336 | -9/Exiles | Met 8R-AWN 3366 | -9/Exiles | Met EX-HEX 3469 | -9/Exiles | Met EX-DEC 3510 | -9/Exiles | Learned location of Zion (-7) 3535 | -9/Exiles | Met EX-BIN 3558 | -9/Exiles | Aligned with FarCom system 3560 | -9/Exiles | Given EX-Vault access code 3609 | -9/Exiles | Opened EX-Vault 3620 | -9/Exiles | Found Supersonic Drone Bay 3627 | -9/Exiles | Found Trap Reconfigurator 3662 | -9/Exiles | Warned to stay clear of 0b10 Research branches 3747 | -9/Exiles | Build established: Hauler-Mutant 3787 | -9/Exiles | Discovered new exit (range 11) 3802 | -9/Exiles | Left Exiles lab with Trap Reconfigurator 3802 | -9/Exiles | Entered Mines 3945 | -8/Mines | Discovered exit to Materials (range 12) 4173 | -8/Mines | Discovered exit to Materials (range 15) 4512 | -8/Mines | Entered Materials 4512 | -8/Materials | Evolved 2 slots: Utility x2 4684 | -8/Materials | Repaired Autogun? 4947 | -8/Materials | Discovered new exit (range 16) 5462 | -8/Materials | Repaired Arm. Wheel? 5524 | -8/Materials | Repaired Imp. Light Armor Plating? 5633 | -8/Materials | Identified exit to Garrison 5633 | -8/Materials | Entered Garrison 5729 | -8/Garrison | Triggered checkpoint 5766 | -8/Garrison | Triggered checkpoint 5859 | -8/Garrison | Discovered new exit (range 14) 5868 | -8/Garrison | Triggered checkpoint 6092 | -8/Garrison | Discovered new exit (range 15) 6178 | -8/Garrison | Triggered checkpoint 6227 | -8/Garrison | Discovered new exit (range 12) 6251 | -8/Garrison | Installed Relay Interface Framework 6310 | -8/Garrison | Triggered checkpoint 6337 | -8/Garrison | Garrison Relay disabled 6526 | -8/Garrison | Triggered checkpoint 6558 | -8/Garrison | Garrison Relay disabled 6775 | -8/Garrison | Triggered checkpoint 6846 | -8/Garrison | Garrison Relay disabled 6929 | -8/Garrison | Entered Factory 6929 | -7/Factory | Evolved 2 slots: Utility x2 7254 | -7/Factory | Build established: Bothacker-Skirmisher 7979 | -7/Factory | Discovered new exit (range 6) 8098 | -7/Factory | Lost 3 parts (1n1u1w) 9852 | -7/Factory | Local fabrication network quarantined 9878 | -7/Factory | Fabricated System Restoration Module? 9916 | -7/Factory | Fabricated Great Axe? 9976 | -7/Factory | Garrison activated, responded to threat 10542 | -7/Factory | Sucked down chute 10542 | -7/Factory | Entered Waste 10557 | -7/Waste | EMP discharged 10557 | -7/Waste | System corruption reached 10% 10562 | -7/Waste | Spotted C-40 Crusher 10562 | -7/Waste | Spotted C-40 Crusher 10573 | -7/Waste | Spotted C-40 Crusher 10582 | -7/Waste | Spotted C-40 Crusher 10591 | -7/Waste | Build established: Bothacker-Mutant 10611 | -7/Waste | Spotted C-40 Crusher 10657 | -7/Waste | EMP discharged 10659 | -7/Waste | Spotted C-40 Crusher 10673 | -7/Waste | Discovered new exit (range 11) 10698 | -7/Waste | Entered Factory 10719 | -7/Factory | Discovered new exit (range 193) 11149 | -7/Factory | Repaired Broken Flak Gun 11794 | -7/Factory | Fabricated Arc Projector? 11798 | -7/Factory | Core integrity fell below 50% 11832 | -7/Factory | Fabricated Flak Gun? 11885 | -7/Factory | Local fabrication network quarantined 11898 | -7/Factory | First assault squad dispatched 12007 | -7/Factory | Garrison activated, responded to threat 12400 | -7/Factory | Identified exit to Garrison 12400 | -7/Factory | Entered Garrison 12458 | -7/Garrison | Triggered checkpoint 12505 | -7/Garrison | Garrison Relay disabled 12576 | -7/Garrison | P-60 Hacker assimilated allied Trooper 4a 12768 | -7/Garrison | Triggered checkpoint 12772 | -7/Garrison | Triggered checkpoint 12960 | -7/Garrison | Lost 4 parts (1n1u2w) 13097 | -7/Garrison | Lost 3 parts (1p1u1w) 13287 | -7/Garrison | Spotted B-75 Beast 13562 | -7/Garrison | Triggered checkpoint 13608 | -7/Garrison | Discovered new exit (range 20) 13659 | -7/Garrison | Expanded RIF knowledge: Watcher Feeds 13760 | -7/Garrison | Discovered new exit (range 13) 13994 | -7/Garrison | Discovered new exit (range 17) 14056 | -7/Garrison | Triggered checkpoint 14125 | -7/Garrison | Garrison Relay disabled 14253 | -7/Garrison | Entered Factory 14805 | -7/Factory | Discovered new exit (range 15) 15053 | -7/Factory | Core integrity fell below 20% 15453 | -7/Factory | Build established: Bothacker-Skirmisher 15882 | -7/Factory | Build established: Bothacker-Assassin 15993 | -7/Factory | Identified exit to Garrison 15993 | -7/Factory | Entered Garrison 16361 | -7/Garrison | Triggered checkpoint 16519 | -7/Garrison | Triggered checkpoint 16565 | -7/Garrison | Destroyed 7 combat bots 16642 | -7/Garrison | Discovered new exit (range 15) 16664 | -7/Garrison | Build established: Bothacker-Mutant 16673 | -7/Garrison | Expanded RIF knowledge: Structural Interface 16847 | -7/Garrison | Triggered checkpoint 16907 | -7/Garrison | Lost 3 parts (1p2w) 16999 | -7/Garrison | Entered Factory 16999 | -6/Factory | Evolved 2 slots: Utility x2 17000 | -6/Factory | Discovered new exit (range 19) 18410 | -6/Factory | Fabricated Humpback (x1) 18869 | -6/Factory | Build established: Hauler-Mutant 19029 | -6/Factory | Sucked down chute 19029 | -6/Factory | Entered Waste 19044 | -6/Waste | EMP discharged 19060 | -6/Waste | 1 allies followed down the chute 19065 | -6/Waste | Spotted C-40 Crusher 19072 | -6/Waste | Spotted C-40 Crusher 19076 | -6/Waste | Spotted C-40 Crusher 19133 | -6/Waste | Destroyed C-40 Crusher 19144 | -6/Waste | EMP discharged 19144 | -6/Waste | System corruption reached 10% 19148 | -6/Waste | Spotted C-40 Crusher 19170 | -6/Waste | Destroyed C-40 Crusher 19173 | -6/Waste | Spotted C-40 Crusher 19184 | -6/Waste | Found Damper Plating 19204 | -6/Waste | Spotted C-40 Crusher 19228 | -6/Waste | Destroyed C-40 Crusher 19244 | -6/Waste | EMP discharged 19250 | -6/Waste | Found Damper Plating 19302 | -6/Waste | Discovered new exit (range 11) 19335 | -6/Waste | Entered Factory 19798 | -6/Factory | Build established: Hauler-Assassin 20169 | -6/Factory | Discovered new exit (range 16) 20587 | -6/Factory | Entered Extension 20587 | -6/Extension | Accompanied by 1 ally 20696 | -6/Extension | Rescued a captive Derelict 20736 | -6/Extension | Found Unknown Device 20736 | -6/Extension | Identified Launcher Loader 20751 | -6/Extension | Rescued a captive Derelict 20822 | -6/Extension | Rescued a captive Derelict 20843 | -6/Extension | Rescued A7 20911 | -6/Extension | Rescued a captive Derelict 21299 | -6/Extension | Allies destroyed B-75 Beast 21332 | -6/Extension | Spotted B-75 Beast 21339 | -6/Extension | Allies destroyed B-75 Beast 21569 | -6/Extension | Build established: Bothacker-Mutant 21863 | -6/Extension | Rescued a captive Derelict 21864 | -6/Extension | Rescued a captive Derelict 21899 | -6/Extension | Rescued a captive Derelict 21937 | -6/Extension | Discovered new exit (range 13) 21950 | -6/Extension | Discovered new exit (range 10) 22012 | -6/Extension | Entered Cetus 22012 | -6/Cetus | Accompanied by 10 allies (A7) 22017 | -6/Cetus | Acquired a Cetus Manufacturing Module code from A7 22041 | -6/Cetus | Spotted Cetus Guard 22041 | -6/Cetus | Spotted Cetus Guard 22046 | -6/Cetus | Spotted Cetus Guard 22046 | -6/Cetus | Spotted Cetus Guard 22062 | -6/Cetus | Allies destroyed Cetus Guard 22062 | -6/Cetus | Allies destroyed Cetus Guard 22067 | -6/Cetus | Allies destroyed Cetus Guard 22068 | -6/Cetus | Destroyed Cetus Guard 22174 | -6/Cetus | Discovered new exit (range 15) 22447 | -6/Cetus | Started Cetus Manufacturing Module 22472 | -6/Cetus | Manufactured an Enhanced Grunt 22497 | -6/Cetus | Manufactured an Enhanced Grunt 22522 | -6/Cetus | Manufactured an Enhanced Grunt 22527 | -6/Cetus | Cetus Manufacturing Module disabled 22621 | -6/Cetus | Escorted A7 to Cetus Mainframe 22645 | -6/Cetus | Discovered new exit (range 16) 22693 | -6/Cetus | Discovered new exit (range 27) 22705 | -6/Cetus | Spotted Cetus Guard 22705 | -6/Cetus | Spotted Cetus Guard 22705 | -6/Cetus | Spotted Cetus Guard 22705 | -6/Cetus | Spotted Cetus Guard 22709 | -6/Cetus | Destroyed Cetus Guard 22711 | -6/Cetus | Allies destroyed Cetus Guard 22715 | -6/Cetus | Destroyed Cetus Guard 22720 | -6/Cetus | Allies destroyed Cetus Guard 22747 | -6/Cetus | Met Revision 17 22846 | -6/Cetus | Entered Archives 22846 | -6/Archives | Accompanied by 4 allies (A7) 22851 | -6/Archives | Received a hacking code to weaken MAIN.C 22872 | -6/Archives | Discovered new exit (range 20) 22920 | -6/Archives | Unable to access archive contents 22921 | -6/Archives | Discovered new exit (range 18) 22933 | -6/Archives | Discovered new exit (range 20) 22967 | -6/Archives | Entered Hub_04(d) 22967 | -6/Hub_04(d) | Accompanied by 2 allies 23050 | -6/Hub_04(d) | Discovered new exit (range 11) 23109 | -6/Hub_04(d) | Found Prototype Processor 23206 | -6/Hub_04(d) | Discovered new exit (range 5) 23483 | -6/Hub_04(d) | Identified exit to Garrison 23644 | -6/Hub_04(d) | Garrison activated, responded to threat 23819 | -6/Hub_04(d) | Found Prototype Device 23820 | -6/Hub_04(d) | Identified Exp. Thermal Shield 23954 | -6/Hub_04(d) | Discovered new exit (range 19) 24163 | -6/Hub_04(d) | Identified exit to Factory 24547 | -6/Hub_04(d) | Network Hub disabled 24552 | -6/Hub_04(d) | Spotted Lightning 24686 | -6/Hub_04(d) | Network Hub disabled 24707 | -6/Hub_04(d) | Spotted Lightning 24708 | -6/Hub_04(d) | Spotted Lightning 24717 | -6/Hub_04(d) | First assault squad dispatched 24718 | -6/Hub_04(d) | Entered Factory 24718 | -5/Factory | Evolved 2 slots: Utility x2 24819 | -5/Factory | Discovered new exit (range 23) 24917 | -5/Factory | Identified exit to Factory 25318 | -5/Factory | First assault squad dispatched 26036 | -5/Factory | Fabricated Humpback? 26093 | -5/Factory | Repaired Broken Imp. Remote Shield? 26116 | -5/Factory | Fabricated Humpback? 26170 | -5/Factory | Repaired Quantum Reactor? 26312 | -5/Factory | Garrison activated, responded to threat 26413 | -5/Factory | Identified Exp. Signal Interpreter 26726 | -5/Factory | Lost 14 parts (1n10u3w) 26731 | -5/Factory | Destroyed 8 combat bots 26995 | -5/Factory | Lost 3 parts (3u) 27084 | -5/Factory | Discovered new exit (range 5) 27128 | -5/Factory | Sucked down chute 27128 | -5/Factory | Entered Waste 27128 | -5/Waste | The area was eerily silent 27198 | -5/Waste | Found Unknown Device 27198 | -5/Waste | Identified Antimissile System 27207 | -5/Waste | Found Damper Plating 27395 | -5/Waste | Discovered new exit (range 11) 27413 | -5/Waste | Found Damper Plating 27515 | -5/Waste | Build established: Scavenger-Mutant 27624 | -5/Waste | Entered Factory 27667 | -5/Factory | Discovered exit to Factory (range 34) 27690 | -5/Factory | Repaired Broken Micro-nuke Launcher 27759 | -5/Factory | Repaired Broken Centrium Heavy Treads? 28300 | -5/Factory | Identified exit to Garrison 28300 | -5/Factory | Entered Garrison 28426 | -5/Garrison | Triggered checkpoint 28488 | -5/Garrison | Garrison Relay disabled 28571 | -5/Garrison | Spotted B-75 Beast 28628 | -5/Garrison | Triggered checkpoint 28661 | -5/Garrison | Destroyed B-75 Beast 28769 | -5/Garrison | Discovered exit to Factory (range 10) 28788 | -5/Garrison | Triggered checkpoint 28819 | -5/Garrison | Garrison Relay disabled 28970 | -5/Garrison | Triggered checkpoint 28979 | -5/Garrison | Core integrity fell below 50% 29018 | -5/Garrison | Destroyed 9 combat bots 29109 | -5/Garrison | Expanded RIF knowledge: Signal Jamming 29229 | -5/Garrison | Triggered checkpoint 29489 | -5/Garrison | Discovered exit to Factory (range 15) 29554 | -5/Garrison | Triggered checkpoint 29574 | -5/Garrison | Garrison Relay disabled 29662 | -5/Garrison | Entered Factory 29662 | -4/Factory | Evolved 2 slots: Utility x2 29698 | -4/Factory | Found Prototype Launcher 30412 | -4/Factory | First assault squad dispatched 30663 | -4/Factory | Lost 3 parts (3u) 30670 | -4/Factory | Garrison activated, responded to threat 30706 | -4/Factory | Identified Mni. Smartbomb Launcher 30752 | -4/Factory | Core integrity fell below 50% 30755 | -4/Factory | Destroyed 9 combat bots 30788 | -4/Factory | Lost 16 parts (2p1n7u6w) 30818 | -4/Factory | Destroyed 7 combat bots 30871 | -4/Factory | Lost 4 parts (1n2u1w) 31022 | -4/Factory | Garrison activated, responded to threat 31060 | -4/Factory | Identified exit to Garrison 31070 | -4/Factory | Entered Garrison 31209 | -4/Garrison | Found Quantum Capacitor 31311 | -4/Garrison | Spotted B-86 Titan 31338 | -4/Garrison | Triggered checkpoint 31375 | -4/Garrison | Garrison Relay disabled 31686 | -4/Garrison | Triggered checkpoint 31995 | -4/Garrison | Core integrity fell below 20% 32003 | -4/Garrison | Destroyed B-86 Titan 32034 | -4/Garrison | Lost 9 parts (1p2n3u3w) 32069 | -4/Garrison | System corruption reached 10% 32128 | -4/Garrison | Found Quantum Capacitor 32341 | -4/Garrison | Discovered new exit (range 12) 32408 | -4/Garrison | Triggered checkpoint 32441 | -4/Garrison | Garrison Relay disabled 32634 | -4/Garrison | Discovered new exit (range 15) 32675 | -4/Garrison | Expanded RIF knowledge: Program Shield 32683 | -4/Garrison | Entered Factory 33299 | -4/Factory | Discovered new exit (range 16) 33320 | -4/Factory | Entered Research 33320 | -3/Research | Evolved 2 slots: Utility x2 33656 | -3/Research | Identified exit to Garrison 33656 | -3/Research | Entered Garrison 33664 | -3/Garrison | Expanded RIF knowledge: Autooverride 33744 | -3/Garrison | Triggered checkpoint 33780 | -3/Garrison | Garrison Relay disabled 33804 | -3/Garrison | Build established: Scavenger-Assassin 33868 | -3/Garrison | Triggered checkpoint 33875 | -3/Garrison | Spotted B-86 Titan 34017 | -3/Garrison | Triggered checkpoint 34070 | -3/Garrison | Lost 3 parts (1n2u) 34134 | -3/Garrison | Triggered checkpoint 34146 | -3/Garrison | Destroyed B-86 Titan 34167 | -3/Garrison | Destroyed 9 combat bots 34372 | -3/Garrison | Discovered new exit (range 13) 34466 | -3/Garrison | Garrison Relay disabled 34480 | -3/Garrison | Triggered checkpoint 34587 | -3/Garrison | Discovered new exit (range 15) 34788 | -3/Garrison | Build established: Scavenger-Mutant 34820 | -3/Garrison | Lost 3 parts (2u1w) 34890 | -3/Garrison | Spotted B-86 Titan 34890 | -3/Garrison | Spotted B-86 Titan 35074 | -3/Garrison | Triggered checkpoint 35108 | -3/Garrison | Build established: Botlord-Mutant 35148 | -3/Garrison | Garrison Relay disabled 35551 | -3/Garrison | Garrison Relay disabled 35622 | -3/Garrison | Garrison Relay disabled 35738 | -3/Garrison | Triggered checkpoint 35995 | -3/Garrison | Entered Research 35995 | -2/Research | Accompanied by 10 allies 35995 | -2/Research | Evolved 2 slots: Utility x2 36183 | -2/Research | Garrison activated, responded to threat 36372 | -2/Research | Identified exit to Garrison 36413 | -2/Research | Entered Garrison 36413 | -2/Garrison | Accompanied by 6 allies 36566 | -2/Garrison | Spotted B-90 Cyclops 36759 | -2/Garrison | Garrison Relay disabled 36782 | -2/Garrison | Triggered checkpoint 36948 | -2/Garrison | Discovered new exit (range 9) 36971 | -2/Garrison | Expanded RIF knowledge: Robot Detection 37282 | -2/Garrison | Triggered checkpoint 37555 | -2/Garrison | Entered Research 37555 | -2/Research | Accompanied by 4 allies 37562 | -2/Research | Discovered new exit (range 23) 37569 | -2/Research | Identified exit to Testing 38162 | -2/Research | System corruption reached 10% 38472 | -2/Research | Spotted B-90 Cyclops 38671 | -2/Research | Lost 3 parts (1n2u) 38929 | -2/Research | Spotted B-90 Cyclops 39179 | -2/Research | Garrison activated, responded to threat 39235 | -2/Research | Identified exit to Garrison 39235 | -2/Research | Entered Garrison 39584 | -2/Garrison | Triggered checkpoint 39584 | -2/Garrison | Triggered checkpoint 39738 | -2/Garrison | Spotted B-90 Cyclops 39741 | -2/Garrison | Assimilated Cyclops 9a with formatsys_high 39742 | -2/Garrison | Core integrity fell below 50% 39865 | -2/Garrison | Discovered new exit (range 10) 39986 | -2/Garrison | Build established: Bothacker-Mutant 40058 | -2/Garrison | Garrison Relay disabled 40317 | -2/Garrison | Discovered new exit (range 15) 40352 | -2/Garrison | Build established: Botlord-Mutant 40362 | -2/Garrison | Triggered checkpoint 40438 | -2/Garrison | Triggered checkpoint 40545 | -2/Garrison | Garrison Relay disabled 40775 | -2/Garrison | Discovered new exit (range 10) 40797 | -2/Garrison | Expanded RIF knowledge: Threat Obfuscation 40908 | -2/Garrison | Triggered checkpoint 40944 | -2/Garrison | Garrison Relay disabled 41105 | -2/Garrison | Entered Access 41105 | -1/Access | Accompanied by 3 allies 41105 | -1/Access | Evolved 2 slots: Utility x2 41214 | -1/Access | Identified exit to Surface 41235 | -1/Access | Found Prototype Device 41235 | -1/Access | Identified EM Dispersion Field 41950 | -1/Access | Energy Cycler disabled 42152 | -1/Access | First assault squad dispatched 42174 | -1/Access | Garrison activated, responded to threat 42211 | -1/Access | Destroyed 9 combat bots 42361 | -1/Access | Spotted B-99 Colossus 42414 | -1/Access | Lost 7 parts (2n3u2w) 42426 | *** | Escaped! Last Messages --------------- 42391_ Destroyed Sml. Battery. 42391_ Destroyed Gamma Rifle. 42392_ The unstable cave ceiling collapses. 42395_ System corrupted: Heat flow error (+131). 42396_ The unstable cave ceiling collapses. 42396_ P-80 Master destroyed. 42404_ The unstable cave ceiling collapses. 42409_ Acquired 65 matter. 42413_ Slug penetrates Sealed Heavy Doors. 42413_ Penetrated by Slug. 42413_ Slug penetrates Sealed Heavy Doors. 42414_ The unstable cave ceiling collapses. 42418_ Slug penetrates Sealed Heavy Doors. 42421_ B-99 Colossus suffers critical hit. 42422_ Quantum Reactor destroyed. 42422_ Relay Coupler [NC] destroyed. 42422_ Slug penetrates Sealed Heavy Doors. [Achievement: Back For More] [Achievement: Inspector Gadget] [Achievement: Victory By Combat] Map ----- +----------------------------------------------------+ | + + ! #??????????????????????? | | | # # #??????????????????????? | | !# # #??????????????????????? | | ########### #?############??????????????????????? | | ??????????# #???????????????????????????????????? | | ??????????# #???????????????????????????????????? | | ??????????# #???????????????????????????????????? | | ??????????# #???????????????????????????????????? | | ??????????# #??########?????????????????????????? | | ??????????# #?? #?????????????????????????? | | ??????????# #? #?????????????????????????? | | ??????????# #? #?????????????????????????? | | ??????????# # ! #?????????????????????????? | | ??????????# # #?????????????????????????? | | ??????????# + #?????????????????????????? | | ??????????# # #?????????????????????????? | | ??????????# #?????????????????????????? | | ??????????# #######?????????????????????????? | | ??????????# % # ##???????????????????????????? | | ??????????# # ##########??????????????????? | | ??????????# [ "??????????????????? | | ?????????? "????BB????????????? | | ?????????? * "????BB????????????? | | ?????????# "??????????????????? | | ????????? "" "??????????????????? | | ???????? # @" "??????? ???BB?????? | | ????????# ! """" BB?????? | | ??????????# = #???????? | | ??????????# """" #???????? | | ??????????# "?????? ????????? | | ??????????# ####### ##########??????????????????? | | ??????????# #?????###???????????????????????????? | | ??????????# #?############??????????????????????? | | ??????????# # =#??????????????????????? | | ??????????# # #??????????????????????? | | ??????????# + " #??????????????????????? | | ??????????# # """" ????????????????????????? | | ??????????# # """""??????????????????????????? | | ??????????# #? """"??????????????????????????? | | ??????????# #? """???????????????????????????? | | ??????????# #?? " ???????????????????????????? | | ??????????# #?? ???????????????????????????? | | ??????????# #??? ??????????????????????????? | | ??????????# #??? ?????????????????????????? | | ??????????# #???? ???????????????????????? | | ??????????# #????#######????????????????????????? | | ??????????# #?############??????????????????????? | | ??????????# # #??????????????????????? | | ??????????# # #??????????????????????? | | ??????????# + #??????????????????????? | +----------------------------------------------------+ Best States ------------- Heat Dissipation 106 Coolant Potential 80 Energy Generation 39 Energy Capacity 950 Matter Stores 600 Matter Capacity 600 Sight Range 22 Terrain Scan Range 20 Terrain Scan Density 210 Power Amplification 80 Additional Mass Support 9 Base Temperature (-) 200 Armor Coverage 2400 Resistance: KI 30 Resistance: TH 15 Resistance: EM 90 Core Shielding 20 Propulsion Shielding 66 Utility Shielding 66 Phase Shifting 15 Evasion (%) 62 Targeting Accuracy 24 Melee Accuracy 16 Target Analysis 8 Armor Integrity Analysis 66 Recoil Reduction 6 Matter Filtering 50 Energy Filtering 30 Particle Charging 20 Stasis Canceling 2 Offensive Hacking 26 Defensive Hacking 14 Relay Coupler Types 265 Relay Coupler Value 8 Item Schematics ----------------- Lrg. Storage Unit | -10/Mines | Hacked Hacking Suite | -9/Materials | Scanalyzed Med. Storage Unit | -9/Materials | Scanalyzed Imp. Medium Laser | -9/Materials | Scanalyzed Humpback | -8/Materials | Scanalyzed System Restoration Module | -7/Factory | Hacked Arc Projector | -7/Factory | Hacked Imp. EM Pulse Cannon | -7/Factory | Hacked Great Axe | -7/Factory | Hacked System Shield | -7/Factory | Scanalyzed Imp. Cooling System | -7/Factory | Scanalyzed Flak Gun | -7/Factory | Scanalyzed Plasma Cutter | -7/Factory | Scanalyzed Hvy. Gauss Cannon | -6/Factory | Hacked Nova Cannon | -5/Factory | Hacked Prc. Matter Filter | -5/Factory | Scanalyzed Exp. Signal Interpreter | -5/Factory | Scanalyzed Imp. KE Penetrator | -5/Factory | Scanalyzed Quantum Reactor | -5/Factory | Scanalyzed Robot Schematics ------------------ None Fabricated ------------ System Restoration Module | x2 | -7/Factory Great Axe | x2 | -7/Factory Arc Projector | x1 | -7/Factory Flak Gun | x2 | -7/Factory Humpback | x1 | -6/Factory Humpback | x1 | -5/Factory Humpback | x1 | -5/Factory Alien Tech Used ----------------- None Achievements -------------- Back For More Inspector Gadget Victory By Combat Challenges ------------ None Game ------ Seed ScatterCompactRegulator Manual? 0 Play Time 08:15:27 Cumulative 178.7 hours Start 2021.08.28 @ 19:22:56 End 2021.08.29 @ 03:51:17 Sessions 5 Manual Loads 0 Difficulty Rogue Special Mode None Game No. 50 Rogue 50 Adventurer 0 Explorer 0 Win Type 0 Total 8 Types 7/0/1/0/0/0/0/0/0 Lore% 75 Gallery% 84 Achievement% 66 Wizard Run 0 Options --------- ASCII 0 Keyboard 0 Movement Numpad Keybinds 0 Fullscreen 1 Font 14/SmallcapsGlow Map View 84x54 Tactical HUD 1 Map Filters NONE Filters NONE Steam 1 RUN: 1a28ee04-b31b-4215-aa99-32195237e609